Workbook

Sheet Inputs
A1: Calculation of stress redistribution on cross-section | F1: Cross-section
A3: Type of the condrete used for precast | B3: C50/60 | F3: btot | G3: 2 | H3: m
A4: fcm | B4: 58 | C4: MPa | F4: bp | G4: 0.4 | H4: m
A5: Ecm | B5: 37 | C5: GPa | F5: bm | G5: =(G3-G4)/2 -> 0.8 | H5: m
A7: Type of the concrete used for slab | B7: C30/37 | F7: htot | G7: =G9+G8 -> 0.9 | H7: m
A8: fcm | B8: 30 | C8: MPa | F8: hp | G8: 0.7 | H8: m
A9: Ecm | B9: 32 | C9: GPa | F9: hm | G9: 0.2 | H9: m
A11: Inner forces | F11: Ap | G11: =G4*G8 -> 0.28 | H11: m2
A12: Moment | B12: 200 | C12: kNm | F12: Am | G12: =G3*G9 -> 0.4 | H12: m2
A13: Normal force | B13: 0 | C13: kN | F13: As | G13: =G11+G12 -> 0.68 | H13: m2
A15: Time of loading t' | B15: 7 | C15: days | F15: Ts | G15: =(G11*G8/2*B5+B9*G12*(G8+G9/2))/(B5*G11+B9*G12) -> 0.5987046632 | H15: m
F16: htot - Ts | G16: =G7-G15 -> 0.3012953368 | H16: m
F17: z0 | G17: =G15-G8/2 -> 0.2487046632 | H17: m | J17: Calculation
F18: r | G18: =G8/2+G9/2 -> 0.45 | H18: m | J18: Calculation: | L18: 1000 | M18: Times
F19: Sy | G19: =-G18*G12 -> -0.18 | H19: m3 | J19: Global time: | L19: 3000 | M19: Days
F20: Iy,p | G20: =1/12*G4*G8^3 -> 0.01143333333 | H20: m4
F21: Iy,m | G21: =1/12*G3*G9^3 -> 0.001333333333 | H21: m4

Sheet B3Precast
A1: Výpočet dotvarování prefabrikátu dle Modelu B3
C3: čas - sledovaný okamžik: | O3: t | P3: = | Q3: =Inputs!L19 -> 3000 | T3: [den] | AV3: Třídy cementu: | BA3: typ I | BD3: Způsob ošetřování: | BJ3: propařování | BN3: Tvar průřezu: | BR3: deska
C4: stáří betonu v okamžiku vnesení zatížení: | O4: t' | P4: = | Q4: =Inputs!B15 -> 7 | T4: [den] | BA4: typ II | BJ4: normální | BR4: válec
C5: doba ošetřování betonu: | O5: t0 | P5: = | Q5: 3 | T5: [den] | BA5: typ III | BJ5: ve vodě | BR5: hranol
C6: prům. válc. pevnost v tlaku ve 28 dnech (fcm): | O6: fc | P6: = | Q6: =Inputs!B4 -> 58 | T6: [MPa] | BR6: koule
C7: plocha průřezu: | O7: v | P7: = | Q7: =Inputs!G11*10^6 -> 280000 | T7: [mm2] | BR7: kostka
C8: obvod prvku vystavený okolnímu prostředí: | O8: s | P8: = | Q8: =(Inputs!G8+Inputs!G8+Inputs!G4)*1000 -> 1800 | T8: [mm]
C9: relativní vlhkost okolního prostředí: | O9: h | P9: = | Q9: 50 | T9: [%]
C10: druh cementu: | V10: 3
C11: množství vody ve směsi: | O11: w | P11: = | Q11: 150 | T11: [kg/m3] | V11: =Q11/Q12 -> 0.375 | X11: =IF((Q11/Q12)<0.35,"*přidej vodu/uber cement",IF((Q11/Q12)>0.85,"*uber vodu/přidej cement","")) -> 
C12: množství cementu ve směsi: | O12: c | P12: = | Q12: 400 | T12: [kg/m3] | X12: =IF(Q12<160,"*přidej cement",IF(Q12>720,"*uber cement","")) -> 
C13: množství kameniva ve směsi: | O13: a | P13: = | Q13: 1750 | T13: [kg/m3] | V13: =Q13/Q12 -> 4.375 | X13: =IF((Q13/Q12)<2.5,"*přidej kamenivo/uber cement",IF((Q13/Q12)>13.5,"*uber kamenivo/přidej cement","")) -> 
C14: způsob ošetřování: | V14: 2
C15: tvar průřezu: | V15: 3
A18: Výpočet | N18: J(t;t') | AH18: J(t, t-1) | AR18: J (ξ+t', t') | BB18: J (t, t-ξ) | BL18: J (t, t-ξ)
BL19: Δt | BO19: = | BP19: 0.01 | BR19: [den]
C20: čas | O20: t' | Q20: = | AA20: = | AB20: =Q4 -> 7 | AC20: [den] | AH20: t' | AK20: = | AL20: =AL21-1 -> 2999 | AN20: [den] | AR20: t' | AU20: = | AV20: =Q4 -> 7 | AX20: [den] | BB20: t' | BE20: = | BF20: =AB59 -> 1503.5 | BH20: [den] | BL20: t' | BO20: = | BP20: =Q4 -> 7 | BR20: [den]
C21: čas | O21: t | Q21: = | AA21: = | AB21: =Q3 -> 3000 | AC21: [den] | AH21: t | AK21: = | AL21: =Q3 -> 3000 | AN21: [den] | AR21: t | AU21: = | AV21: =AB57 -> 1503.5 | AX21: [den] | BB21: t | BE21: = | BF21: =Q3 -> 3000 | BH21: [den] | BL21: t | BO21: = | BP21: =BP20+BP19 -> 7.01 | BR21: [den]
C22: modul pružnosti ve 28 dnech | O22: E28 | Q22: = | R22: 4734·(fc)1/2 | AA22: = | AB22: =4734*SQRT($Q$6) -> 36053.06988 | AC22: [MPa] | AH22: E28 | AK22: = | AL22: =4734*SQRT($Q$6) -> 36053.06988 | AN22: [MPa] | AR22: E28 | AU22: = | AV22: =4734*SQRT($Q$6) -> 36053.06988 | AX22: [MPa] | BB22: E28 | BE22: = | BF22: =4734*SQRT($Q$6) -> 36053.06988 | BH22: [MPa] | BL22: E28 | BO22: = | BP22: =4734*SQRT($Q$6) -> 36053.06988 | BR22: [MPa]
C23: materiálový parametr | O23: q1 | Q23: = | R23: 0,6·106/E28 | AA23: = | AB23: =(0.6*10^6)/AB22 -> 16.64213344 | AC23: [-] | AH23: q1 | AK23: = | AL23: =(0.6*10^6)/AL22 -> 16.64213344 | AN23: [-] | AR23: q1 | AU23: = | AV23: =(0.6*10^6)/AV22 -> 16.64213344 | AX23: [-] | BB23: q1 | BE23: = | BF23: =(0.6*10^6)/BF22 -> 16.64213344 | BH23: [-] | BL23: q1 | BO23: = | BP23: =(0.6*10^6)/BP22 -> 16.64213344 | BR23: [-]
C24: materiálový parametr | O24: q2 | Q24: = | R24: 185,4·c1/2·fc-0,9 | AA24: = | AB24: =185.4*SQRT($Q$12)*$Q$6^(-0.9) -> 95.95211042 | AC24: [-] | AH24: q2 | AK24: = | AL24: =185.4*SQRT($Q$12)*$Q$6^(-0.9) -> 95.95211042 | AN24: [-] | AR24: q2 | AU24: = | AV24: =185.4*SQRT($Q$12)*$Q$6^(-0.9) -> 95.95211042 | AX24: [-] | BB24: q2 | BE24: = | BF24: =185.4*SQRT($Q$12)*$Q$6^(-0.9) -> 95.95211042 | BH24: [-] | BL24: q2 | BO24: = | BP24: =185.4*SQRT($Q$12)*$Q$6^(-0.9) -> 95.95211042 | BR24: [-]
C25: materiálový parametr | O25: q3 | Q25: = | R25: 0,29·(w/c)4·q2 | AA25: = | AB25: =0.29*($Q$11/$Q$12)^4*AB24 -> 0.5502722348 | AC25: [-] | AH25: q3 | AK25: = | AL25: =0.29*($Q$11/$Q$12)^4*AL24 -> 0.5502722348 | AN25: [-] | AR25: q3 | AU25: = | AV25: =0.29*($Q$11/$Q$12)^4*AV24 -> 0.5502722348 | AX25: [-] | BB25: q3 | BE25: = | BF25: =0.29*($Q$11/$Q$12)^4*BF24 -> 0.5502722348 | BH25: [-] | BL25: q3 | BO25: = | BP25: =0.29*($Q$11/$Q$12)^4*BP24 -> 0.5502722348 | BR25: [-]
C26: materiálový parametr | O26: q4 | Q26: = | R26: 20,3·(a/c)-0,7 | AA26: = | AB26: =20.3*($Q$13/$Q$12)^(-0.7) -> 7.224559926 | AC26: [-] | AH26: q4 | AK26: = | AL26: =20.3*($Q$13/$Q$12)^(-0.7) -> 7.224559926 | AN26: [-] | AR26: q4 | AU26: = | AV26: =20.3*($Q$13/$Q$12)^(-0.7) -> 7.224559926 | AX26: [-] | BB26: q4 | BE26: = | BF26: =20.3*($Q$13/$Q$12)^(-0.7) -> 7.224559926 | BH26: [-] | BL26: q4 | BO26: = | BP26: =20.3*($Q$13/$Q$12)^(-0.7) -> 7.224559926 | BR26: [-]
C27: funkce | O27: Qf(t') | Q27: = | R27: [0,086·(t')2/9+1,21·(t')4/9]-1 | AA27: = | AB27: =(0.086*AB20^(2/9)+1.21*AB20^(4/9))^(-1) -> 0.3326847763 | AC27: [-] | AH27: Qf(t') | AK27: = | AL27: =(0.086*AL20^(2/9)+1.21*AL20^(4/9))^(-1) -> 0.02326552087 | AN27: [-] | AR27: Qf(t') | AU27: = | AV27: =(0.086*AV20^(2/9)+1.21*AV20^(4/9))^(-1) -> 0.3326847763 | AX27: [-] | BB27: Qf(t') | BE27: = | BF27: =(0.086*BF20^(2/9)+1.21*BF20^(4/9))^(-1) -> 0.0315599821 | BH27: [-] | BL27: Qf(t') | BO27: = | BP27: =(0.086*BP20^(2/9)+1.21*BP20^(4/9))^(-1) -> 0.3326847763 | BR27: [-]
C28: funkce | O28: r(t') | Q28: = | R28: 1,7·(t')0,12+8 | AA28: = | AB28: =1.7*AB20^(0.12)+8 -> 10.1471416 | AC28: [-] | AH28: r(t') | AK28: = | AL28: =1.7*AL20^(0.12)+8 -> 12.4431001 | AN28: [-] | AR28: r(t') | AU28: = | AV28: =1.7*AV20^(0.12)+8 -> 10.1471416 | AX28: [-] | BB28: r(t') | BE28: = | BF28: =1.7*BF20^(0.12)+8 -> 12.08979306 | BH28: [-] | BL28: r(t') | BO28: = | BP28: =1.7*BP20^(0.12)+8 -> 10.1471416 | BR28: [-]
C29: empirický parametr | O29: m | Q29: = | R29: 0.5 | AA29: = | AB29: 0.5 | AC29: [-] | AH29: m | AK29: = | AL29: 0.5 | AN29: [-] | AR29: m | AU29: = | AV29: 0.5 | AX29: [-] | BB29: m | BE29: = | BF29: 0.5 | BH29: [-] | BL29: m | BO29: = | BP29: 0.5 | BR29: [-]
C30: empirický parametr | O30: n | Q30: = | R30: 0.1 | AA30: = | AB30: 0.1 | AC30: [-] | AH30: n | AK30: = | AL30: 0.1 | AN30: [-] | AR30: n | AU30: = | AV30: 0.1 | AX30: [-] | BB30: n | BE30: = | BF30: 0.1 | BH30: [-] | BL30: n | BO30: = | BP30: 0.1 | BR30: [-]
C31: funkce | O31: Z(t,t') | Q31: = | R31: (t')-m·ln[1+(t-t')n] | AA31: = | AB31: =AB20^(-AB29)*LN(1+(AB21-AB20)^AB30) -> 0.4427395886 | AC31: [-] | AH31: Z(t,t') | AK31: = | AL31: =AL20^(-AL29)*LN(1+(AL21-AL20)^AL30) -> 0.01265718792 | AN31: [-] | AR31: Z(t,t') | AU31: = | AV31: =AV20^(-AV29)*LN(1+(AV21-AV20)^AV30) -> 0.4248569093 | AX31: [-] | BB31: Z(t,t') | BE31: = | BF31: =BF20^(-BF29)*LN(1+(BF21-BF20)^BF30) -> 0.0289894509 | BH31: [-] | BL31: Z(t,t') | BO31: = | BP31: =BP20^(-BP29)*LN(1+(BP21-BP20)^BP30) -> 0.1848878117 | BR31: [-]
C32: funkce | O32: Q(t,t') | Q32: = | R32: Qf(t')·[1+(Qf(t')/Z(t,t'))r(t')]-1/r(t') | AA32: = | AB32: =AB27*(1+(AB27/AB31)^(AB28))^(-1/AB28) -> 0.3309331452 | AC32: [-] | AH32: Q(t,t') | AK32: = | AL32: =AL27*(1+(AL27/AL31)^(AL28))^(-1/AL28) -> 0.01265666596 | AN32: [-] | AR32: Q(t,t') | AU32: = | AV32: =AV27*(1+(AV27/AV31)^(AV28))^(-1/AV28) -> 0.3300624142 | AX32: [-] | BB32: Q(t,t') | BE32: = | BF32: =BF27*(1+(BF27/BF31)^(BF28))^(-1/BF28) -> 0.02826482697 | BH32: [-] | BL32: Q(t,t') | BO32: = | BP32: =BP27*(1+(BP27/BP31)^(BP28))^(-1/BP28) -> 0.1848409126 | BR32: [-]
C33: základní funkce dotvarování | O33: C0(t,t') | Q33: = | R33: q2·Q(t,t')+q3·ln[1+(t-t')n]+q4·ln(t/t') | AA33: = | AB33: =AB24*AB32+AB25*LN(1+(AB21-AB20)^AB30)+AB26*LN(AB21/AB20) -> 76.18244874 | AC33: [-] | AH33: C0(t,t') | AK33: = | AL33: =AL24*AL32+AL25*LN(1+(AL21-AL20)^AL30)+AL26*LN(AL21/AL20) -> 1.598262046 | AN33: [-] | AR33: C0(t,t') | AU33: = | AV33: =AV24*AV32+AV25*LN(1+(AV21-AV20)^AV30)+AV26*LN(AV21/AV20) -> 71.0820195 | AX33: [-] | BB33: C0(t,t') | BE33: = | BF33: =BF24*BF32+BF25*LN(1+(BF21-BF20)^BF30)+BF26*LN(BF21/BF20) -> 8.32145763 | BH33: [-] | BL33: C0(t,t') | BO33: = | BP33: =BP24*BP32+BP25*LN(1+(BP21-BP20)^BP30)+BP26*LN(BP21/BP20) -> 18.01536421 | BR33: [-]
C34: součinitel typu cementu | O34: a1 | Q34: = | R34: 1,0 = typ I; 0,85 = typ II; 1,1= typ III | AA34: = | AB34: =IF($V$10=1,1,IF($V$10=2,0.85,1.1)) -> 1.1 | AC34: [-] | AH34: a1 | AK34: = | AL34: =IF($V$10=1,1,IF($V$10=2,0.85,1.1)) -> 1.1 | AN34: [-] | AR34: a1 | AU34: = | AV34: =IF($V$10=1,1,IF($V$10=2,0.85,1.1)) -> 1.1 | AX34: [-] | BB34: a1 | BE34: = | BF34: =IF($V$10=1,1,IF($V$10=2,0.85,1.1)) -> 1.1 | BH34: [-] | BL34: a1 | BO34: = | BP34: =IF($V$10=1,1,IF($V$10=2,0.85,1.1)) -> 1.1 | BR34: [-]
C35: součinitel způsobu ošetřování | O35: a2 | Q35: = | R35: 0,75 = pár.; 1,2 = norm.; 1,0 = pod v. | AA35: = | AB35: =IF($V$14=1,0.75,IF($V$14=2,1.2,1)) -> 1.2 | AC35: [-] | AH35: a2 | AK35: = | AL35: =IF($V$14=1,0.75,IF($V$14=2,1.2,1)) -> 1.2 | AN35: [-] | AR35: a2 | AU35: = | AV35: =IF($V$14=1,0.75,IF($V$14=2,1.2,1)) -> 1.2 | AX35: [-] | BB35: a2 | BE35: = | BF35: =IF($V$14=1,0.75,IF($V$14=2,1.2,1)) -> 1.2 | BH35: [-] | BL35: a2 | BO35: = | BP35: =IF($V$14=1,0.75,IF($V$14=2,1.2,1)) -> 1.2 | BR35: [-]
C36: základní hodnota konečného smršťování | O36: es∞ | Q36: = | R36: -a1·a2·(1,9·10-2·w2,1·fc-0,28+270) | AA36: = | AB36: =-AB34*AB35*(1.9*10^(-2)*$Q$11^2.1*$Q$6^(-0.28)+270) -> -655.1853765 | AC36: [·10-6] | AH36: es∞ | AK36: = | AL36: =-AL34*AL35*(1.9*10^(-2)*$Q$11^2.1*$Q$6^(-0.28)+270) -> -655.1853765 | AN36: [·10-6] | AR36: es∞ | AU36: = | AV36: =-AV34*AV35*(1.9*10^(-2)*$Q$11^2.1*$Q$6^(-0.28)+270) -> -655.1853765 | AX36: [·10-6] | BB36: es∞ | BE36: = | BF36: =-BF34*BF35*(1.9*10^(-2)*$Q$11^2.1*$Q$6^(-0.28)+270) -> -655.1853765 | BH36: [·10-6] | BL36: es∞ | BO36: = | BP36: =-BP34*BP35*(1.9*10^(-2)*$Q$11^2.1*$Q$6^(-0.28)+270) -> -655.1853765 | BR36: [·10-6]
C37: náhradní rozměr prvku | O37: D | Q37: = | R37: 2·v/s | AA37: = | AB37: =2*$Q$7/$Q$8 -> 311.1111111 | AC37: [mm] | AH37: D | AK37: = | AL37: =2*$Q$7/$Q$8 -> 311.1111111 | AN37: [mm] | AR37: D | AU37: = | AV37: =2*$Q$7/$Q$8 -> 311.1111111 | AX37: [mm] | BB37: D | BE37: = | BF37: =2*$Q$7/$Q$8 -> 311.1111111 | BH37: [mm] | BL37: D | BO37: = | BP37: =2*$Q$7/$Q$8 -> 311.1111111 | BR37: [mm]
C38: konstanta | O38: kt | Q38: = | R38: 8.5·t0-0.08·fc-1/4 | AA38: = | AB38: =8.5*$Q$5^(-0.08)*$Q$6^(-1/4) -> 2.820929464 | AC38: [-] | AH38: kt | AK38: = | AL38: =8.5*$Q$5^(-0.08)*$Q$6^(-1/4) -> 2.820929464 | AN38: [-] | AR38: kt | AU38: = | AV38: =8.5*$Q$5^(-0.08)*$Q$6^(-1/4) -> 2.820929464 | AX38: [-] | BB38: kt | BE38: = | BF38: =8.5*$Q$5^(-0.08)*$Q$6^(-1/4) -> 2.820929464 | BH38: [-] | BL38: kt | BO38: = | BP38: =8.5*$Q$5^(-0.08)*$Q$6^(-1/4) -> 2.820929464 | BR38: [-]
C39: součinitel tvaru průřezu | O39: ks | Q39: = | R39: 1.0 … deska; 1.15 … válec; 1.25 … hranol; 1.3 … koule; 1.55 … kostka | AA39: = | AB39: =IF($V$15=1,1,IF($V$15=2,1.15,IF($V$15=3,1.25,IF($V$15=4,1.3,1.55)))) -> 1.25 | AC39: [-] | AH39: ks | AK39: = | AL39: =IF($V$15=1,1,IF($V$15=2,1.15,IF($V$15=3,1.25,IF($V$15=4,1.3,1.55)))) -> 1.25 | AN39: [-] | AR39: ks | AU39: = | AV39: =IF($V$15=1,1,IF($V$15=2,1.15,IF($V$15=3,1.25,IF($V$15=4,1.3,1.55)))) -> 1.25 | AX39: [-] | BB39: ks | BE39: = | BF39: =IF($V$15=1,1,IF($V$15=2,1.15,IF($V$15=3,1.25,IF($V$15=4,1.3,1.55)))) -> 1.25 | BH39: [-] | BL39: ks | BO39: = | BP39: =IF($V$15=1,1,IF($V$15=2,1.15,IF($V$15=3,1.25,IF($V$15=4,1.3,1.55)))) -> 1.25 | BR39: [-]
C40: vliv velikosti průřezu | O40: tsh | Q40: = | R40: kt·(ks·D·0.1)2 | AA40: = | AB40: =AB38*(AB39*AB37*0.1)^2 -> 4266.220486 | AC40: [den] | AH40: tsh | AK40: = | AL40: =AL38*(AL39*AL37*0.1)^2 -> 4266.220486 | AN40: [den] | AR40: tsh | AU40: = | AV40: =AV38*(AV39*AV37*0.1)^2 -> 4266.220486 | AX40: [den] | BB40: tsh | BE40: = | BF40: =BF38*(BF39*BF37*0.1)^2 -> 4266.220486 | BH40: [den] | BL40: tsh | BO40: = | BP40: =BP38*(BP39*BP37*0.1)^2 -> 4266.220486 | BR40: [den]
C41: vliv času | O41: S(t) | Q41: = | R41: tanh((t-t0)/tsh)1/2 | AA41: = | AB41: =TANH(SQRT((AB21-$Q$5)/AB40)) -> 0.6848279097 | AC41: [-] | AH41: S(t) | AK41: = | AL41: =TANH(SQRT((AL21-$Q$5)/AL40)) -> 0.6848279097 | AN41: [-] | AR41: S(t) | AU41: = | AV41: =TANH(SQRT((AV21-$Q$5)/AV40)) -> 0.5320905888 | AX41: [-] | BB41: S(t) | BE41: = | BF41: =TANH(SQRT((BF21-$Q$5)/BF40)) -> 0.6848279097 | BH41: [-] | BL41: S(t) | BO41: = | BP41: =TANH(SQRT((BP21-$Q$5)/BP40)) -> 0.03064887213 | BR41: [-]
C42: modul pružnosti | P42: E(607) | Q42: = | R42: E28·(607/(4+0,85·607))1/2 | AA42: = | AB42: =AB22*SQRT(607/(4+0.85*607)) -> 38954.33588 | AC42: [MPa] | AI42: E(607) | AK42: = | AL42: =AL22*SQRT(607/(4+0.85*607)) -> 38954.33588 | AN42: [MPa] | AS42: E(607) | AU42: = | AV42: =AV22*SQRT(607/(4+0.85*607)) -> 38954.33588 | AX42: [MPa] | BC42: E(607) | BE42: = | BF42: =BF22*SQRT(607/(4+0.85*607)) -> 38954.33588 | BH42: [MPa] | BM42: E(607) | BO42: = | BP42: =BP22*SQRT(607/(4+0.85*607)) -> 38954.33588 | BR42: [MPa]
C43: čas | O43: t0+tSH | Q43: = | R43: t0+tSH | AA43: = | AB43: =Q5+AB40 -> 4269.220486 | AC43: [den] | AH43: t0+tSH | AK43: = | AL43: =Q5+AL40 -> 4269.220486 | AN43: [den] | AR43: t0+tSH | AU43: = | AV43: =Q5+AV40 -> 4269.220486 | AX43: [den] | BB43: t0+tSH | BE43: = | BF43: =BD5+BF40 -> 4266.220486 | BH43: [den] | BL43: t0+tSH | BO43: = | BP43: =BN5+BP40 -> 4266.220486 | BR43: [den]
C44: modul pružnosti | P44: E(t0+tsh) | Q44: = | R44: E28·((t0+tSH)/(4+0,85·(t0+tSH)))1/2 | AA44: = | AB44: =AB22*SQRT(AB43/(4+0.85*AB43)) -> 39083.5102 | AC44: [MPa] | AH44: E(t0+tsh) | AK44: = | AL44: =AL22*SQRT(AL43/(4+0.85*AL43)) -> 39083.5102 | AN44: [MPa] | AR44: E(t0+tsh) | AU44: = | AV44: =AV22*SQRT(AV43/(4+0.85*AV43)) -> 39083.5102 | AX44: [MPa] | BB44: E(t0+tsh) | BE44: = | BF44: =BF22*SQRT(BF43/(4+0.85*BF43)) -> 39083.49507 | BH44: [MPa] | BL44: E(t0+tsh) | BO44: = | BP44: =BP22*SQRT(BP43/(4+0.85*BP43)) -> 39083.49507 | BR44: [MPa]
C45: časově závislé konečné smršťování | O45: esh∞ | Q45: = | R45: es∞·E(607)/E(t0+tsh) | AA45: = | AB45: =$AB$36*AB42/AB44 -> -653.0199333 | AC45: [·10-6] | AH45: esh∞ | AK45: = | AL45: =$AL$36*AL42/AL44 -> -653.0199333 | AN45: [·10-6] | AR45: esh∞ | AU45: = | AV45: =$AV$36*AV42/AV44 -> -653.0199333 | AX45: [·10-6] | BB45: esh∞ | BE45: = | BF45: =$BF$36*BF42/BF44 -> -653.0201862 | BH45: [·10-6] | BL45: esh∞ | BO45: = | BP45: =$BP$36*BP42/BP44 -> -653.0201862 | BR45: [·10-6]
C46: souč. vlivu vlhkosti | O46: kh | Q46: = | R46: 1-h3 | V46: pro h≤0,98 | AA46: = | AB46: =IF(Q9<=98,1-(Q9/100)^3,IF(Q9=100,-0.2,(1-0.98^3)-(Q9-98)*((1-0.98^3+0.2)/(100-98)))) -> 0.875 | AC46: [-] | AH46: kh | AK46: = | AL46: =IF(Q9<=98,1-(Q9/100)^3,IF(Q9=100,-0.2,(1-0.98^3)-(Q9-98)*((1-0.98^3+0.2)/(100-98)))) -> 0.875 | AN46: [-] | AR46: kh | AU46: = | AV46: =IF(Q9<=98,1-(Q9/100)^3,IF(Q9=100,-0.2,(1-0.98^3)-(Q9-98)*((1-0.98^3+0.2)/(100-98)))) -> 0.875 | AX46: [-] | BB46: kh | BE46: = | BF46: =IF(Q9<=98,1-(Q9/100)^3,IF(Q9=100,-0.2,(1-0.98^3)-(Q9-98)*((1-0.98^3+0.2)/(100-98)))) -> 0.875 | BH46: [-] | BL46: kh | BO46: = | BP46: =IF(Q9<=98,1-(Q9/100)^3,IF(Q9=100,-0.2,(1-0.98^3)-(Q9-98)*((1-0.98^3+0.2)/(100-98)))) -> 0.875 | BR46: [-]
R47: interpol. | V47: pro 0,98<h<1
R48: -0.2 | V48: pro h=1
C49: pom. přetvoření od smršťování | O49: esh(t,t0) | Q49: = | R49: -esh∞·kh·S(t) | AA49: = | AB49: =IF(Q3>Q5,-AB45*AB46*AB41,0) -> 391.3054914 | AC49: [·10-6] | AF49: =-AB49/1000000 -> -0.0003913054914
C50: materiálový parametr | O50: q5 | Q50: = | R50: 7,57·105·fc-1·│esh∞│-0,6 | AA50: = | AB50: =7.57*10^(5)*$Q$6^(-1)*(ABS(AB45))^(-0.6) -> 267.1234548 | AC50: [-] | AH50: q5 | AK50: = | AL50: =7.57*10^(5)*$Q$6^(-1)*(ABS(AL45))^(-0.6) -> 267.1234548 | AN50: [-] | AR50: q5 | AU50: = | AV50: =7.57*10^(5)*$Q$6^(-1)*(ABS(AV45))^(-0.6) -> 267.1234548 | AX50: [-] | BB50: q5 | BE50: = | BF50: =7.57*10^(5)*$Q$6^(-1)*(ABS(BF45))^(-0.6) -> 267.1233928 | BH50: [-] | BL50: q5 | BO50: = | BP50: =7.57*10^(5)*$Q$6^(-1)*(ABS(BP45))^(-0.6) -> 267.1233928 | BR50: [-]
C51: vliv času | O51: S(t') | Q51: = | R51: tanh((t'-t0)/tsh)1/2 | AA51: = | AB51: =TANH(SQRT((AB20-$Q$5)/AB40)) -> 0.03061065663 | AC51: [-] | AH51: S(t') | AK51: = | AL51: =TANH(SQRT((AL20-$Q$5)/AL40)) -> 0.6847536443 | AN51: [-] | AR51: S(t') | AU51: = | AV51: =TANH(SQRT((AV20-$Q$5)/AV40)) -> 0.03061065663 | AX51: [-] | BB51: S(t') | BE51: = | BF51: =TANH(SQRT((BF20-$Q$5)/BF40)) -> 0.5320905888 | BH51: [-] | BL51: S(t') | BO51: = | BP51: =TANH(SQRT((BP20-$Q$5)/BP40)) -> 0.03061065663 | BR51: [-]
C52: vliv času a vlhkosti | O52: H(t) | Q52: = | R52: 1-(1-h/100)·S(t) | AA52: = | AB52: =1-(1-($Q$9/100))*AB41 -> 0.6575860452 | AC52: [-] | AH52: H(t) | AK52: = | AL52: =1-(1-($Q$9/100))*AL41 -> 0.6575860452 | AN52: [-] | AR52: H(t) | AU52: = | AV52: =1-(1-($Q$9/100))*AV41 -> 0.7339547056 | AX52: [-] | BB52: H(t) | BE52: = | BF52: =1-(1-($Q$9/100))*BF41 -> 0.6575860452 | BH52: [-] | BL52: H(t) | BO52: = | BP52: =1-(1-($Q$9/100))*BP41 -> 0.9846755639 | BR52: [-]
C53: vliv času a vlhkosti | O53: H(t') | Q53: = | R53: 1-(1-h/100)·S(t') | AA53: = | AB53: =1-(1-($Q$9/100))*AB51 -> 0.9846946717 | AC53: [-] | AH53: H(t') | AK53: = | AL53: =1-(1-($Q$9/100))*AL51 -> 0.6576231778 | AN53: [-] | AR53: H(t') | AU53: = | AV53: =1-(1-($Q$9/100))*AV51 -> 0.9846946717 | AX53: [-] | BB53: H(t') | BE53: = | BF53: =1-(1-($Q$9/100))*BF51 -> 0.7339547056 | BH53: [-] | BL53: H(t') | BO53: = | BP53: =1-(1-($Q$9/100))*BP51 -> 0.9846946717 | BR53: [-]
C54: funkce dotvarování vysycháním | P54: Cd(t,t',t0) | Q54: = | AA54: = | AB54: =AB50*(EXP(-8*AB52)-EXP(-8*AB53))^(0.5) -> 18.53107554 | AC54: [-] | AH54: Cd(t,t',t0) | AK54: = | AL54: =AL50*(EXP(-8*AL52)-EXP(-8*AL53))^(0.5) -> 0.3317102236 | AN54: [-] | AR54: Cd(t,t',t0) | AU54: = | AV54: =AV50*(EXP(-8*AV52)-EXP(-8*AV53))^(0.5) -> 13.19248128 | AX54: [-] | BB54: Cd(t,t',t0) | BE54: = | BF54: =BF50*(EXP(-8*BF52)-EXP(-8*BF53))^(0.5) -> 13.01380497 | BH54: [-] | BL54: Cd(t,t',t0) | BO54: = | BP54: =BP50*(EXP(-8*BP52)-EXP(-8*BP53))^(0.5) -> 0.06431146998 | BR54: [-]
C55: funkce poddajnosti (compliance) | O55: J(t;t') | Q55: = | R55: q1+C0(t;t')+Cd(t;t';t0) | AA55: = | AB55: =_xlfn.IFS(Q3>Q4,AB23+AB33+AB54,Q3<=Q4,0) -> 111.3556577 | AC55: [10-6/MPa] | AH55: J(t, t-1) | AK55: = | AL55: =_xlfn.IFS(Q3>Q4,AL23+AL33+AL54,Q3<=Q4,0) -> 18.57210571 | AN55: [10-6/MPa] | AR55: J (ξ+t', t') | AU55: = | AV55: =_xlfn.IFS(Q3>Q4,AV23+AV33+AV54,Q3<=Q4,0) -> 100.9166342 | AX55: [10-6/MPa] | BB55: J (t, t-ξ) | BE55: = | BF55: =_xlfn.IFS(Q3>Q4,BF23+BF33+BF54,Q3<=Q4,0) -> 37.97739604 | BH55: [10-6/MPa] | BL55: J (t, t-ξ) | BO55: = | BP55: =BP23+BP33+BP54 -> 34.72180912 | BR55: [10-6/MPa]
O56: ξ | Q56: = | R56: (t-t')/2 | AA56: = | AB56: =(AB21-AB20)/2 -> 1496.5 | AC56: [den]
O57: ξ+t' | Q57: = | AA57: = | AB57: =AB56+AB20 -> 1503.5 | AC57: [den]
O58: ξ+t'-1 | Q58: = | AA58: = | AB58: =AB56+AB20-1 -> 1502.5 | AC58: [den]
O59: t-ξ | Q59: = | AA59: = | AB59: =AB21-AB56 -> 1503.5 | AC59: [den]
O61: J0 | Q61: = | R61: J(t, t-1) | AA61: = | AB61: =AL55 -> 18.57210571 | AC61: [10-6/MPa]
O62: J | Q62: = | R62: J (ξ+t', t') | AA62: = | AB62: =AV55 -> 100.9166342 | AC62: [10-6/MPa]
O63: J | Q63: = | R63: J (t, t-ξ) | AA63: = | AB63: =BF55 -> 37.97739604 | AC63: [10-6/MPa]
O64: α | Q64: = | R64: J (ξ+t', t') / J (t, t-ξ) - 1 | AA64: = | AB64: =_xlfn.IFS(Q3>Q4,AB62/AB63-1,Q3<=Q4,0) -> 1.65728156 | AC64: [-]
O65: c1 | Q65: = | R65: 0,0119 ln (t')+0,08 | AA65: = | AB65: =0.0119*LN(AB20)+0.08 -> 0.1031563308 | AC65: [-]
O66: q | Q66: = | R66: 10 | AB66: 10 | AC66: [-]
C68: relaxační funkce | O68: R(t,t') | Q68: = | AA68: = | AB68: =_xlfn.IFS(Q3>Q4,10^6/AB55*(1+AB65*AB64*AB55/(AB66*AB61))^(-AB66),Q3<=Q4,0) -> 3384.415219 | AC68: MPa
C69: AAEM | O69: E''(t,t') | Q69: = | AA69: = | AB69: =_xlfn.IFS(Q3>Q4,(AB72-AB68)/AB73,Q3<=Q4,0) -> 11515.62915 | AC69: MPa
C70: stárnoucí koeficient | O70: χ (t,t') | Q70: = | AA70: = | AB70: =_xlfn.IFS(Q3>Q4,AB72/(AB72-AB68)-1/AB73,Q3<=Q4,0) -> 0.6800740814 | AC70: [-]
C72: modul pružnosti | O72: E(t') | P72: 2 | Q72: = | R72: 1/J(t'+Δt,t') | AB72: =1/BP55*10^6 -> 28800.34265 | AC72: [MPa]
C73: součinitel dotvarování | O73: j(t,t') | Q73: = | R73: E(t')·J(t,t')-1 | AA73: = | AB73: =IF(Q3>Q4,AB72*AB55*10^(-6)-1,0) -> 2.207081098 | AC73: [-]

Sheet B3Slab
A1: Výpočet dotvarování prefabrikátu dle Modelu B3
C3: čas - sledovaný okamžik: | O3: t | P3: = | Q3: =Inputs!L19 -> 3000 | T3: [den] | AV3: Třídy cementu: | BA3: typ I | BD3: Způsob ošetřování: | BJ3: propařování | BN3: Tvar průřezu: | BR3: deska
C4: stáří betonu v okamžiku vnesení zatížení: | O4: t' | P4: = | Q4: =Inputs!B15 -> 7 | T4: [den] | BA4: typ II | BJ4: normální | BR4: válec
C5: doba ošetřování betonu: | O5: t0 | P5: = | Q5: 3 | T5: [den] | BA5: typ III | BJ5: ve vodě | BR5: hranol
C6: prům. válc. pevnost v tlaku ve 28 dnech (fcm): | O6: fc | P6: = | Q6: =Inputs!B8 -> 30 | T6: [MPa] | BR6: koule
C7: plocha průřezu: | O7: v | P7: = | Q7: =Inputs!G12*10^6 -> 400000 | T7: [mm2] | BR7: kostka
C8: obvod prvku vystavený okolnímu prostředí: | O8: s | P8: = | Q8: =(2*Inputs!G3-Inputs!G4+2*Inputs!G9)*1000 -> 4000 | T8: [mm]
C9: relativní vlhkost okolního prostředí: | O9: h | P9: = | Q9: 50 | T9: [%]
C10: druh cementu: | V10: 1
C11: množství vody ve směsi: | O11: w | P11: = | Q11: 100 | T11: [kg/m3] | V11: =Q11/Q12 -> 0.5 | X11: =IF((Q11/Q12)<0.35,"*přidej vodu/uber cement",IF((Q11/Q12)>0.85,"*uber vodu/přidej cement","")) -> 
C12: množství cementu ve směsi: | O12: c | P12: = | Q12: 200 | T12: [kg/m3] | X12: =IF(Q12<160,"*přidej cement",IF(Q12>720,"*uber cement","")) -> 
C13: množství kameniva ve směsi: | O13: a | P13: = | Q13: 1900 | T13: [kg/m3] | V13: =Q13/Q12 -> 9.5 | X13: =IF((Q13/Q12)<2.5,"*přidej kamenivo/uber cement",IF((Q13/Q12)>13.5,"*uber kamenivo/přidej cement","")) -> 
C14: způsob ošetřování: | V14: 2
C15: tvar průřezu: | V15: 1
A18: Výpočet | N18: J(t;t') | AH18: J(t, t-1) | AR18: J (ξ+t', t') | BB18: J (t, t-ξ) | BL18: J (t, t-ξ)
BL19: Δt | BO19: = | BP19: 0.01 | BR19: [den]
C20: čas | O20: t' | Q20: = | AA20: = | AB20: =Q4 -> 7 | AC20: [den] | AH20: t' | AK20: = | AL20: =AL21-1 -> 2999 | AN20: [den] | AR20: t' | AU20: = | AV20: =Q4 -> 7 | AX20: [den] | BB20: t' | BE20: = | BF20: =AB59 -> 1503.5 | BH20: [den] | BL20: t' | BO20: = | BP20: =Q4 -> 7 | BR20: [den]
C21: čas | O21: t | Q21: = | AA21: = | AB21: =Q3 -> 3000 | AC21: [den] | AH21: t | AK21: = | AL21: =Q3 -> 3000 | AN21: [den] | AR21: t | AU21: = | AV21: =AB57 -> 1503.5 | AX21: [den] | BB21: t | BE21: = | BF21: =Q3 -> 3000 | BH21: [den] | BL21: t | BO21: = | BP21: =BP20+BP19 -> 7.01 | BR21: [den]
C22: modul pružnosti ve 28 dnech | O22: E28 | Q22: = | R22: 4734·(fc)1/2 | AA22: = | AB22: =4734*SQRT($Q$6) -> 25929.18587 | AC22: [MPa] | AH22: E28 | AK22: = | AL22: =4734*SQRT($Q$6) -> 25929.18587 | AN22: [MPa] | AR22: E28 | AU22: = | AV22: =4734*SQRT($Q$6) -> 25929.18587 | AX22: [MPa] | BB22: E28 | BE22: = | BF22: =4734*SQRT($Q$6) -> 25929.18587 | BH22: [MPa] | BL22: E28 | BO22: = | BP22: =4734*SQRT($Q$6) -> 25929.18587 | BR22: [MPa]
C23: materiálový parametr | O23: q1 | Q23: = | R23: 0,6·106/E28 | AA23: = | AB23: =(0.6*10^6)/AB22 -> 23.13994751 | AC23: [-] | AH23: q1 | AK23: = | AL23: =(0.6*10^6)/AL22 -> 23.13994751 | AN23: [-] | AR23: q1 | AU23: = | AV23: =(0.6*10^6)/AV22 -> 23.13994751 | AX23: [-] | BB23: q1 | BE23: = | BF23: =(0.6*10^6)/BF22 -> 23.13994751 | BH23: [-] | BL23: q1 | BO23: = | BP23: =(0.6*10^6)/BP22 -> 23.13994751 | BR23: [-]
C24: materiálový parametr | O24: q2 | Q24: = | R24: 185,4·c1/2·fc-0,9 | AA24: = | AB24: =185.4*SQRT($Q$12)*$Q$6^(-0.9) -> 122.8048725 | AC24: [-] | AH24: q2 | AK24: = | AL24: =185.4*SQRT($Q$12)*$Q$6^(-0.9) -> 122.8048725 | AN24: [-] | AR24: q2 | AU24: = | AV24: =185.4*SQRT($Q$12)*$Q$6^(-0.9) -> 122.8048725 | AX24: [-] | BB24: q2 | BE24: = | BF24: =185.4*SQRT($Q$12)*$Q$6^(-0.9) -> 122.8048725 | BH24: [-] | BL24: q2 | BO24: = | BP24: =185.4*SQRT($Q$12)*$Q$6^(-0.9) -> 122.8048725 | BR24: [-]
C25: materiálový parametr | O25: q3 | Q25: = | R25: 0,29·(w/c)4·q2 | AA25: = | AB25: =0.29*($Q$11/$Q$12)^4*AB24 -> 2.225838313 | AC25: [-] | AH25: q3 | AK25: = | AL25: =0.29*($Q$11/$Q$12)^4*AL24 -> 2.225838313 | AN25: [-] | AR25: q3 | AU25: = | AV25: =0.29*($Q$11/$Q$12)^4*AV24 -> 2.225838313 | AX25: [-] | BB25: q3 | BE25: = | BF25: =0.29*($Q$11/$Q$12)^4*BF24 -> 2.225838313 | BH25: [-] | BL25: q3 | BO25: = | BP25: =0.29*($Q$11/$Q$12)^4*BP24 -> 2.225838313 | BR25: [-]
C26: materiálový parametr | O26: q4 | Q26: = | R26: 20,3·(a/c)-0,7 | AA26: = | AB26: =20.3*($Q$13/$Q$12)^(-0.7) -> 4.198455111 | AC26: [-] | AH26: q4 | AK26: = | AL26: =20.3*($Q$13/$Q$12)^(-0.7) -> 4.198455111 | AN26: [-] | AR26: q4 | AU26: = | AV26: =20.3*($Q$13/$Q$12)^(-0.7) -> 4.198455111 | AX26: [-] | BB26: q4 | BE26: = | BF26: =20.3*($Q$13/$Q$12)^(-0.7) -> 4.198455111 | BH26: [-] | BL26: q4 | BO26: = | BP26: =20.3*($Q$13/$Q$12)^(-0.7) -> 4.198455111 | BR26: [-]
C27: funkce | O27: Qf(t') | Q27: = | R27: [0,086·(t')2/9+1,21·(t')4/9]-1 | AA27: = | AB27: =(0.086*AB20^(2/9)+1.21*AB20^(4/9))^(-1) -> 0.3326847763 | AC27: [-] | AH27: Qf(t') | AK27: = | AL27: =(0.086*AL20^(2/9)+1.21*AL20^(4/9))^(-1) -> 0.02326552087 | AN27: [-] | AR27: Qf(t') | AU27: = | AV27: =(0.086*AV20^(2/9)+1.21*AV20^(4/9))^(-1) -> 0.3326847763 | AX27: [-] | BB27: Qf(t') | BE27: = | BF27: =(0.086*BF20^(2/9)+1.21*BF20^(4/9))^(-1) -> 0.0315599821 | BH27: [-] | BL27: Qf(t') | BO27: = | BP27: =(0.086*BP20^(2/9)+1.21*BP20^(4/9))^(-1) -> 0.3326847763 | BR27: [-]
C28: funkce | O28: r(t') | Q28: = | R28: 1,7·(t')0,12+8 | AA28: = | AB28: =1.7*AB20^(0.12)+8 -> 10.1471416 | AC28: [-] | AH28: r(t') | AK28: = | AL28: =1.7*AL20^(0.12)+8 -> 12.4431001 | AN28: [-] | AR28: r(t') | AU28: = | AV28: =1.7*AV20^(0.12)+8 -> 10.1471416 | AX28: [-] | BB28: r(t') | BE28: = | BF28: =1.7*BF20^(0.12)+8 -> 12.08979306 | BH28: [-] | BL28: r(t') | BO28: = | BP28: =1.7*BP20^(0.12)+8 -> 10.1471416 | BR28: [-]
C29: empirický parametr | O29: m | Q29: = | R29: 0.5 | AA29: = | AB29: 0.5 | AC29: [-] | AH29: m | AK29: = | AL29: 0.5 | AN29: [-] | AR29: m | AU29: = | AV29: 0.5 | AX29: [-] | BB29: m | BE29: = | BF29: 0.5 | BH29: [-] | BL29: m | BO29: = | BP29: 0.5 | BR29: [-]
C30: empirický parametr | O30: n | Q30: = | R30: 0.1 | AA30: = | AB30: 0.1 | AC30: [-] | AH30: n | AK30: = | AL30: 0.1 | AN30: [-] | AR30: n | AU30: = | AV30: 0.1 | AX30: [-] | BB30: n | BE30: = | BF30: 0.1 | BH30: [-] | BL30: n | BO30: = | BP30: 0.1 | BR30: [-]
C31: funkce | O31: Z(t,t') | Q31: = | R31: (t')-m·ln[1+(t-t')n] | AA31: = | AB31: =AB20^(-AB29)*LN(1+(AB21-AB20)^AB30) -> 0.4427395886 | AC31: [-] | AH31: Z(t,t') | AK31: = | AL31: =AL20^(-AL29)*LN(1+(AL21-AL20)^AL30) -> 0.01265718792 | AN31: [-] | AR31: Z(t,t') | AU31: = | AV31: =AV20^(-AV29)*LN(1+(AV21-AV20)^AV30) -> 0.4248569093 | AX31: [-] | BB31: Z(t,t') | BE31: = | BF31: =BF20^(-BF29)*LN(1+(BF21-BF20)^BF30) -> 0.0289894509 | BH31: [-] | BL31: Z(t,t') | BO31: = | BP31: =BP20^(-BP29)*LN(1+(BP21-BP20)^BP30) -> 0.1848878117 | BR31: [-]
C32: funkce | O32: Q(t,t') | Q32: = | R32: Qf(t')·[1+(Qf(t')/Z(t,t'))r(t')]-1/r(t') | AA32: = | AB32: =AB27*(1+(AB27/AB31)^(AB28))^(-1/AB28) -> 0.3309331452 | AC32: [-] | AH32: Q(t,t') | AK32: = | AL32: =AL27*(1+(AL27/AL31)^(AL28))^(-1/AL28) -> 0.01265666596 | AN32: [-] | AR32: Q(t,t') | AU32: = | AV32: =AV27*(1+(AV27/AV31)^(AV28))^(-1/AV28) -> 0.3300624142 | AX32: [-] | BB32: Q(t,t') | BE32: = | BF32: =BF27*(1+(BF27/BF31)^(BF28))^(-1/BF28) -> 0.02826482697 | BH32: [-] | BL32: Q(t,t') | BO32: = | BP32: =BP27*(1+(BP27/BP31)^(BP28))^(-1/BP28) -> 0.1848409126 | BR32: [-]
C33: základní funkce dotvarování | O33: C0(t,t') | Q33: = | R33: q2·Q(t,t')+q3·ln[1+(t-t')n]+q4·ln(t/t') | AA33: = | AB33: =AB24*AB32+AB25*LN(1+(AB21-AB20)^AB30)+AB26*LN(AB21/AB20) -> 68.69206103 | AC33: [-] | AH33: C0(t,t') | AK33: = | AL33: =AL24*AL32+AL25*LN(1+(AL21-AL20)^AL30)+AL26*LN(AL21/AL20) -> 3.098533519 | AN33: [-] | AR33: C0(t,t') | AU33: = | AV33: =AV24*AV32+AV25*LN(1+(AV21-AV20)^AV30)+AV26*LN(AV21/AV20) -> 65.57945733 | AX33: [-] | BB33: C0(t,t') | BE33: = | BF33: =BF24*BF32+BF25*LN(1+(BF21-BF20)^BF30)+BF26*LN(BF21/BF20) -> 8.873409367 | BH33: [-] | BL33: C0(t,t') | BO33: = | BP33: =BP24*BP32+BP25*LN(1+(BP21-BP20)^BP30)+BP26*LN(BP21/BP20) -> 23.79416524 | BR33: [-]
C34: součinitel typu cementu | O34: a1 | Q34: = | R34: 1,0 = typ I; 0,85 = typ II; 1,1= typ III | AA34: = | AB34: =IF($V$10=1,1,IF($V$10=2,0.85,1.1)) -> 1 | AC34: [-] | AH34: a1 | AK34: = | AL34: =IF($V$10=1,1,IF($V$10=2,0.85,1.1)) -> 1 | AN34: [-] | AR34: a1 | AU34: = | AV34: =IF($V$10=1,1,IF($V$10=2,0.85,1.1)) -> 1 | AX34: [-] | BB34: a1 | BE34: = | BF34: =IF($V$10=1,1,IF($V$10=2,0.85,1.1)) -> 1 | BH34: [-] | BL34: a1 | BO34: = | BP34: =IF($V$10=1,1,IF($V$10=2,0.85,1.1)) -> 1 | BR34: [-]
C35: součinitel způsobu ošetřování | O35: a2 | Q35: = | R35: 0,75 = pár.; 1,2 = norm.; 1,0 = pod v. | AA35: = | AB35: =IF($V$14=1,0.75,IF($V$14=2,1.2,1)) -> 1.2 | AC35: [-] | AH35: a2 | AK35: = | AL35: =IF($V$14=1,0.75,IF($V$14=2,1.2,1)) -> 1.2 | AN35: [-] | AR35: a2 | AU35: = | AV35: =IF($V$14=1,0.75,IF($V$14=2,1.2,1)) -> 1.2 | AX35: [-] | BB35: a2 | BE35: = | BF35: =IF($V$14=1,0.75,IF($V$14=2,1.2,1)) -> 1.2 | BH35: [-] | BL35: a2 | BO35: = | BP35: =IF($V$14=1,0.75,IF($V$14=2,1.2,1)) -> 1.2 | BR35: [-]
C36: základní hodnota konečného smršťování | O36: es∞ | Q36: = | R36: -a1·a2·(1,9·10-2·w2,1·fc-0,28+270) | AA36: = | AB36: =-AB34*AB35*(1.9*10^(-2)*$Q$11^2.1*$Q$6^(-0.28)+270) -> -463.4250779 | AC36: [·10-6] | AH36: es∞ | AK36: = | AL36: =-AL34*AL35*(1.9*10^(-2)*$Q$11^2.1*$Q$6^(-0.28)+270) -> -463.4250779 | AN36: [·10-6] | AR36: es∞ | AU36: = | AV36: =-AV34*AV35*(1.9*10^(-2)*$Q$11^2.1*$Q$6^(-0.28)+270) -> -463.4250779 | AX36: [·10-6] | BB36: es∞ | BE36: = | BF36: =-BF34*BF35*(1.9*10^(-2)*$Q$11^2.1*$Q$6^(-0.28)+270) -> -463.4250779 | BH36: [·10-6] | BL36: es∞ | BO36: = | BP36: =-BP34*BP35*(1.9*10^(-2)*$Q$11^2.1*$Q$6^(-0.28)+270) -> -463.4250779 | BR36: [·10-6]
C37: náhradní rozměr prvku | O37: D | Q37: = | R37: 2·v/s | AA37: = | AB37: =2*$Q$7/$Q$8 -> 200 | AC37: [mm] | AH37: D | AK37: = | AL37: =2*$Q$7/$Q$8 -> 200 | AN37: [mm] | AR37: D | AU37: = | AV37: =2*$Q$7/$Q$8 -> 200 | AX37: [mm] | BB37: D | BE37: = | BF37: =2*$Q$7/$Q$8 -> 200 | BH37: [mm] | BL37: D | BO37: = | BP37: =2*$Q$7/$Q$8 -> 200 | BR37: [mm]
C38: konstanta | O38: kt | Q38: = | R38: 8.5·t0-0.08·fc-1/4 | AA38: = | AB38: =8.5*$Q$5^(-0.08)*$Q$6^(-1/4) -> 3.326357412 | AC38: [-] | AH38: kt | AK38: = | AL38: =8.5*$Q$5^(-0.08)*$Q$6^(-1/4) -> 3.326357412 | AN38: [-] | AR38: kt | AU38: = | AV38: =8.5*$Q$5^(-0.08)*$Q$6^(-1/4) -> 3.326357412 | AX38: [-] | BB38: kt | BE38: = | BF38: =8.5*$Q$5^(-0.08)*$Q$6^(-1/4) -> 3.326357412 | BH38: [-] | BL38: kt | BO38: = | BP38: =8.5*$Q$5^(-0.08)*$Q$6^(-1/4) -> 3.326357412 | BR38: [-]
C39: součinitel tvaru průřezu | O39: ks | Q39: = | R39: 1.0 … deska; 1.15 … válec; 1.25 … hranol; 1.3 … koule; 1.55 … kostka | AA39: = | AB39: =IF($V$15=1,1,IF($V$15=2,1.15,IF($V$15=3,1.25,IF($V$15=4,1.3,1.55)))) -> 1 | AC39: [-] | AH39: ks | AK39: = | AL39: =IF($V$15=1,1,IF($V$15=2,1.15,IF($V$15=3,1.25,IF($V$15=4,1.3,1.55)))) -> 1 | AN39: [-] | AR39: ks | AU39: = | AV39: =IF($V$15=1,1,IF($V$15=2,1.15,IF($V$15=3,1.25,IF($V$15=4,1.3,1.55)))) -> 1 | AX39: [-] | BB39: ks | BE39: = | BF39: =IF($V$15=1,1,IF($V$15=2,1.15,IF($V$15=3,1.25,IF($V$15=4,1.3,1.55)))) -> 1 | BH39: [-] | BL39: ks | BO39: = | BP39: =IF($V$15=1,1,IF($V$15=2,1.15,IF($V$15=3,1.25,IF($V$15=4,1.3,1.55)))) -> 1 | BR39: [-]
C40: vliv velikosti průřezu | O40: tsh | Q40: = | R40: kt·(ks·D·0.1)2 | AA40: = | AB40: =AB38*(AB39*AB37*0.1)^2 -> 1330.542965 | AC40: [den] | AH40: tsh | AK40: = | AL40: =AL38*(AL39*AL37*0.1)^2 -> 1330.542965 | AN40: [den] | AR40: tsh | AU40: = | AV40: =AV38*(AV39*AV37*0.1)^2 -> 1330.542965 | AX40: [den] | BB40: tsh | BE40: = | BF40: =BF38*(BF39*BF37*0.1)^2 -> 1330.542965 | BH40: [den] | BL40: tsh | BO40: = | BP40: =BP38*(BP39*BP37*0.1)^2 -> 1330.542965 | BR40: [den]
C41: vliv času | O41: S(t) | Q41: = | R41: tanh((t-t0)/tsh)1/2 | AA41: = | AB41: =TANH(SQRT((AB21-$Q$5)/AB40)) -> 0.9052965174 | AC41: [-] | AH41: S(t) | AK41: = | AL41: =TANH(SQRT((AL21-$Q$5)/AL40)) -> 0.9052965174 | AN41: [-] | AR41: S(t) | AU41: = | AV41: =TANH(SQRT((AV21-$Q$5)/AV40)) -> 0.7864085584 | AX41: [-] | BB41: S(t) | BE41: = | BF41: =TANH(SQRT((BF21-$Q$5)/BF40)) -> 0.9052965174 | BH41: [-] | BL41: S(t) | BO41: = | BP41: =TANH(SQRT((BP21-$Q$5)/BP40)) -> 0.05484306879 | BR41: [-]
C42: modul pružnosti | P42: E(607) | Q42: = | R42: E28·(607/(4+0,85·607))1/2 | AA42: = | AB42: =AB22*SQRT(607/(4+0.85*607)) -> 28015.76173 | AC42: [MPa] | AI42: E(607) | AK42: = | AL42: =AL22*SQRT(607/(4+0.85*607)) -> 28015.76173 | AN42: [MPa] | AS42: E(607) | AU42: = | AV42: =AV22*SQRT(607/(4+0.85*607)) -> 28015.76173 | AX42: [MPa] | BC42: E(607) | BE42: = | BF42: =BF22*SQRT(607/(4+0.85*607)) -> 28015.76173 | BH42: [MPa] | BM42: E(607) | BO42: = | BP42: =BP22*SQRT(607/(4+0.85*607)) -> 28015.76173 | BR42: [MPa]
C43: čas | O43: t0+tSH | Q43: = | R43: t0+tSH | AA43: = | AB43: =Q5+AB40 -> 1333.542965 | AC43: [den] | AH43: t0+tSH | AK43: = | AL43: =Q5+AL40 -> 1333.542965 | AN43: [den] | AR43: t0+tSH | AU43: = | AV43: =Q5+AV40 -> 1333.542965 | AX43: [den] | BB43: t0+tSH | BE43: = | BF43: =BD5+BF40 -> 1330.542965 | BH43: [den] | BL43: t0+tSH | BO43: = | BP43: =BN5+BP40 -> 1330.542965 | BR43: [den]
C44: modul pružnosti | P44: E(t0+tsh) | Q44: = | R44: E28·((t0+tSH)/(4+0,85·(t0+tSH)))1/2 | AA44: = | AB44: =AB22*SQRT(AB43/(4+0.85*AB43)) -> 28074.65871 | AC44: [MPa] | AH44: E(t0+tsh) | AK44: = | AL44: =AL22*SQRT(AL43/(4+0.85*AL43)) -> 28074.65871 | AN44: [MPa] | AR44: E(t0+tsh) | AU44: = | AV44: =AV22*SQRT(AV43/(4+0.85*AV43)) -> 28074.65871 | AX44: [MPa] | BB44: E(t0+tsh) | BE44: = | BF44: =BF22*SQRT(BF43/(4+0.85*BF43)) -> 28074.54741 | BH44: [MPa] | BL44: E(t0+tsh) | BO44: = | BP44: =BP22*SQRT(BP43/(4+0.85*BP43)) -> 28074.54741 | BR44: [MPa]
C45: časově závislé konečné smršťování | O45: esh∞ | Q45: = | R45: es∞·E(607)/E(t0+tsh) | AA45: = | AB45: =$AB$36*AB42/AB44 -> -462.4528725 | AC45: [·10-6] | AH45: esh∞ | AK45: = | AL45: =$AL$36*AL42/AL44 -> -462.4528725 | AN45: [·10-6] | AR45: esh∞ | AU45: = | AV45: =$AV$36*AV42/AV44 -> -462.4528725 | AX45: [·10-6] | BB45: esh∞ | BE45: = | BF45: =$BF$36*BF42/BF44 -> -462.4547058 | BH45: [·10-6] | BL45: esh∞ | BO45: = | BP45: =$BP$36*BP42/BP44 -> -462.4547058 | BR45: [·10-6]
C46: souč. vlivu vlhkosti | O46: kh | Q46: = | R46: 1-h3 | V46: pro h≤0,98 | AA46: = | AB46: =IF(Q9<=98,1-(Q9/100)^3,IF(Q9=100,-0.2,(1-0.98^3)-(Q9-98)*((1-0.98^3+0.2)/(100-98)))) -> 0.875 | AC46: [-] | AH46: kh | AK46: = | AL46: =IF(Q9<=98,1-(Q9/100)^3,IF(Q9=100,-0.2,(1-0.98^3)-(Q9-98)*((1-0.98^3+0.2)/(100-98)))) -> 0.875 | AN46: [-] | AR46: kh | AU46: = | AV46: =IF(Q9<=98,1-(Q9/100)^3,IF(Q9=100,-0.2,(1-0.98^3)-(Q9-98)*((1-0.98^3+0.2)/(100-98)))) -> 0.875 | AX46: [-] | BB46: kh | BE46: = | BF46: =IF(Q9<=98,1-(Q9/100)^3,IF(Q9=100,-0.2,(1-0.98^3)-(Q9-98)*((1-0.98^3+0.2)/(100-98)))) -> 0.875 | BH46: [-] | BL46: kh | BO46: = | BP46: =IF(Q9<=98,1-(Q9/100)^3,IF(Q9=100,-0.2,(1-0.98^3)-(Q9-98)*((1-0.98^3+0.2)/(100-98)))) -> 0.875 | BR46: [-]
R47: interpol. | V47: pro 0,98<h<1
R48: -0.2 | V48: pro h=1
C49: pom. přetvoření od smršťování | O49: esh(t,t0) | Q49: = | R49: -esh∞·kh·S(t) | AA49: = | AB49: =IF(Q3>Q5,-AB45*AB46*AB41,0) -> 366.324853 | AC49: [·10-6] | AF49: =-AB49/1000000 -> -0.000366324853
C50: materiálový parametr | O50: q5 | Q50: = | R50: 7,57·105·fc-1·│esh∞│-0,6 | AA50: = | AB50: =7.57*10^(5)*$Q$6^(-1)*(ABS(AB45))^(-0.6) -> 635.2345864 | AC50: [-] | AH50: q5 | AK50: = | AL50: =7.57*10^(5)*$Q$6^(-1)*(ABS(AL45))^(-0.6) -> 635.2345864 | AN50: [-] | AR50: q5 | AU50: = | AV50: =7.57*10^(5)*$Q$6^(-1)*(ABS(AV45))^(-0.6) -> 635.2345864 | AX50: [-] | BB50: q5 | BE50: = | BF50: =7.57*10^(5)*$Q$6^(-1)*(ABS(BF45))^(-0.6) -> 635.2330755 | BH50: [-] | BL50: q5 | BO50: = | BP50: =7.57*10^(5)*$Q$6^(-1)*(ABS(BP45))^(-0.6) -> 635.2330755 | BR50: [-]
C51: vliv času | O51: S(t') | Q51: = | R51: tanh((t'-t0)/tsh)1/2 | AA51: = | AB51: =TANH(SQRT((AB20-$Q$5)/AB40)) -> 0.05477478025 | AC51: [-] | AH51: S(t') | AK51: = | AL51: =TANH(SQRT((AL20-$Q$5)/AL40)) -> 0.9052513239 | AN51: [-] | AR51: S(t') | AU51: = | AV51: =TANH(SQRT((AV20-$Q$5)/AV40)) -> 0.05477478025 | AX51: [-] | BB51: S(t') | BE51: = | BF51: =TANH(SQRT((BF20-$Q$5)/BF40)) -> 0.7864085584 | BH51: [-] | BL51: S(t') | BO51: = | BP51: =TANH(SQRT((BP20-$Q$5)/BP40)) -> 0.05477478025 | BR51: [-]
C52: vliv času a vlhkosti | O52: H(t) | Q52: = | R52: 1-(1-h/100)·S(t) | AA52: = | AB52: =1-(1-($Q$9/100))*AB41 -> 0.5473517413 | AC52: [-] | AH52: H(t) | AK52: = | AL52: =1-(1-($Q$9/100))*AL41 -> 0.5473517413 | AN52: [-] | AR52: H(t) | AU52: = | AV52: =1-(1-($Q$9/100))*AV41 -> 0.6067957208 | AX52: [-] | BB52: H(t) | BE52: = | BF52: =1-(1-($Q$9/100))*BF41 -> 0.5473517413 | BH52: [-] | BL52: H(t) | BO52: = | BP52: =1-(1-($Q$9/100))*BP41 -> 0.9725784656 | BR52: [-]
C53: vliv času a vlhkosti | O53: H(t') | Q53: = | R53: 1-(1-h/100)·S(t') | AA53: = | AB53: =1-(1-($Q$9/100))*AB51 -> 0.9726126099 | AC53: [-] | AH53: H(t') | AK53: = | AL53: =1-(1-($Q$9/100))*AL51 -> 0.547374338 | AN53: [-] | AR53: H(t') | AU53: = | AV53: =1-(1-($Q$9/100))*AV51 -> 0.9726126099 | AX53: [-] | BB53: H(t') | BE53: = | BF53: =1-(1-($Q$9/100))*BF51 -> 0.6067957208 | BH53: [-] | BL53: H(t') | BO53: = | BP53: =1-(1-($Q$9/100))*BP51 -> 0.9726126099 | BR53: [-]
C54: funkce dotvarování vysycháním | P54: Cd(t,t',t0) | Q54: = | AA54: = | AB54: =AB50*(EXP(-8*AB52)-EXP(-8*AB53))^(0.5) -> 69.94099425 | AC54: [-] | AH54: Cd(t,t',t0) | AK54: = | AL54: =AL50*(EXP(-8*AL52)-EXP(-8*AL53))^(0.5) -> 0.9563895815 | AN54: [-] | AR54: Cd(t,t',t0) | AU54: = | AV54: =AV50*(EXP(-8*AV52)-EXP(-8*AV53))^(0.5) -> 54.55862459 | AX54: [-] | BB54: Cd(t,t',t0) | BE54: = | BF54: =BF50*(EXP(-8*BF52)-EXP(-8*BF53))^(0.5) -> 43.76174185 | BH54: [-] | BL54: Cd(t,t',t0) | BO54: = | BP54: =BP50*(EXP(-8*BP52)-EXP(-8*BP53))^(0.5) -> 0.2145682658 | BR54: [-]
C55: funkce poddajnosti (compliance) | O55: J(t;t') | Q55: = | R55: q1+C0(t;t')+Cd(t;t';t0) | AA55: = | AB55: =_xlfn.IFS(Q3>Q4,AB23+AB33+AB54,Q3<=Q4,0) -> 161.7730028 | AC55: [10-6/MPa] | AH55: J(t, t-1) | AK55: = | AL55: =_xlfn.IFS(Q3>Q4,AL23+AL33+AL54,Q3<=Q4,0) -> 27.19487061 | AN55: [10-6/MPa] | AR55: J (ξ+t', t') | AU55: = | AV55: =_xlfn.IFS(Q3>Q4,AV23+AV33+AV54,Q3<=Q4,0) -> 143.2780294 | AX55: [10-6/MPa] | BB55: J (t, t-ξ) | BE55: = | BF55: =_xlfn.IFS(Q3>Q4,BF23+BF33+BF54,Q3<=Q4,0) -> 75.77509873 | BH55: [10-6/MPa] | BL55: J (t, t-ξ) | BO55: = | BP55: =BP23+BP33+BP54 -> 47.14868102 | BR55: [10-6/MPa]
O56: ξ | Q56: = | R56: (t-t')/2 | AA56: = | AB56: =(AB21-AB20)/2 -> 1496.5 | AC56: [den]
O57: ξ+t' | Q57: = | AA57: = | AB57: =AB56+AB20 -> 1503.5 | AC57: [den]
O58: ξ+t'-1 | Q58: = | AA58: = | AB58: =AB56+AB20-1 -> 1502.5 | AC58: [den]
O59: t-ξ | Q59: = | AA59: = | AB59: =AB21-AB56 -> 1503.5 | AC59: [den]
O61: J0 | Q61: = | R61: J(t, t-1) | AA61: = | AB61: =AL55 -> 27.19487061 | AC61: [10-6/MPa]
O62: J | Q62: = | R62: J (ξ+t', t') | AA62: = | AB62: =AV55 -> 143.2780294 | AC62: [10-6/MPa]
O63: J | Q63: = | R63: J (t, t-ξ) | AA63: = | AB63: =BF55 -> 75.77509873 | AC63: [10-6/MPa]
O64: α | Q64: = | R64: J (ξ+t', t') / J (t, t-ξ) - 1 | AA64: = | AB64: =_xlfn.IFS(Q3>Q4,AB62/AB63-1,Q3<=Q4,0) -> 0.8908326327 | AC64: [-]
O65: c1 | Q65: = | R65: 0,0119 ln (t')+0,08 | AA65: = | AB65: =0.0119*LN(AB20)+0.08 -> 0.1031563308 | AC65: [-]
O66: q | Q66: = | R66: 10 | AB66: 10 | AC66: [-]
C68: relaxační funkce | O68: R(t,t') | Q68: = | AA68: = | AB68: =_xlfn.IFS(Q3>Q4,10^6/AB55*(1+AB65*AB64*AB55/(AB66*AB61))^(-AB66),Q3<=Q4,0) -> 3630.343616 | AC68: MPa
C69: AAEM | O69: E''(t,t') | Q69: = | AA69: = | AB69: =_xlfn.IFS(Q3>Q4,(AB72-AB68)/AB73,Q3<=Q4,0) -> 7230.874513 | AC69: MPa
C70: stárnoucí koeficient | O70: χ (t,t') | Q70: = | AA70: = | AB70: =_xlfn.IFS(Q3>Q4,AB72/(AB72-AB68)-1/AB73,Q3<=Q4,0) -> 0.7951818277 | AC70: [-]
C72: modul pružnosti | O72: E(t') | P72: 2 | Q72: = | R72: 1/J(t'+Δt,t') | AB72: =1/BP55*10^6 -> 21209.50106 | AC72: [MPa]
C73: součinitel dotvarování | O73: j(t,t') | Q73: = | R73: E(t')·J(t,t')-1 | AA73: = | AB73: =IF(Q3>Q4,AB72*AB55*10^(-6)-1,0) -> 2.431124674 | AC73: [-]

Sheet ElasticStressStrain
A1: Calculation of stress and stain at time of loading
A2: t' | B2: =Inputs!B15 -> 7 | C2: days
A4: Inner forces | E4: Matrix of stiffness | H4: Strain vector | L4: Strain, stress on cross-section
A5: N | B5: =Inputs!B13 -> 0 | C5: kN | E5: =(B3Precast!AB72*Inputs!G11+B3Slab!AB72*Inputs!G12)*1000 -> 16547896.37 | F5: =Inputs!G19*B3Slab!AB72*1000 -> -3817710.191 | H5: ε | I5: =MMULT(_xlfn.ANCHORARRAY(E9),B5:B6) -> 3.861970065e-05 | J5: - | L5: z | M5: ε | N5: σ
A6: My | B6: =Inputs!B12-B5*Inputs!G17 -> 200 | C6: kNm | E6: =F5 -> -3817710.191 | F6: =(B3Precast!AB72*Inputs!G20+B3Slab!AB72*(Inputs!G21+Inputs!G18^2*Inputs!G12))*1000 -> 2075532.838 | H6: κy | I6: 0.0001673974116 | J6: 1/m | L6: [m] | M6: [-] | N6: [MPa]
L7: =-Inputs!G8/2-Inputs!G9 -> -0.55 | M7: 0 | N7: =M7*B3Slab!$AB$72 -> 0
E8: Inversion | L8: =-Inputs!G8/2-Inputs!G9 -> -0.55 | M8: =$I$6*L8+$I$5 -> -5.344887571e-05 | N8: =M8*B3Slab!$AB$72 -> -1.133623986
E9: =MINVERSE(E5:F6) -> 1.049797561e-07 | F9: 1.930985033e-07 | L9: =-Inputs!G8/2 -> -0.35 | M9: -1.99693934e-05 | N9: =M9*B3Slab!$AB$72 -> -0.4235408704
E10: 1.930985033e-07 | F10: 8.369870579e-07 | L10: =-Inputs!G8/2 -> -0.35 | M10: -1.99693934e-05 | N10: =M10*B3Precast!$AB$72 -> -0.5751253723
L11: =-Inputs!G17 -> -0.2487046632 | M11: -3.012816215e-06 | N11: =M11*B3Precast!$AB$72 -> -0.08677013933
L12: 0 | M12: 3.861970065e-05 | N12: =M12*B3Precast!$AB$72 -> 1.112260612
L13: =Inputs!G8/2 -> 0.35 | M13: 9.72087947e-05 | N13: =M13*B3Precast!$AB$72 -> 2.799646596
L14: =Inputs!G8/2 -> 0.35 | M14: 0 | N14: =M14*B3Precast!$AB$72 -> 0

Sheet StressStrainTime
A1: Calculation of stress and stain in time
A2: t | B2: =Inputs!L19 -> 3000 | C2: days
A3: t' | B3: =Inputs!B15 -> 7 | C3: days
A5: Inner forces | G5: Matrix of stiffness | J5: Strain vector | N5: Strain, stress on cross-section
A6: N | B6: =Inputs!B13 -> 0 | C6: kN | E6: =B6-Inputs!G11*ElasticStressStrain!I5*(B3Precast!AB68-B3Precast!AB69)*1000-Inputs!G12*ElasticStressStrain!I5*(B3Slab!AB68-B3Slab!AB69)*1000+Inputs!G18*Inputs!G12*ElasticStressStrain!I6*(B3Slab!AB68-B3Slab!AB69)*1000 -> 35.05806414 | G6: =(Inputs!G11*B3Precast!AB69+Inputs!G12*B3Slab!AB69)*1000 -> 6116725.967 | H6: =(-Inputs!G18*Inputs!G12*B3Slab!AB69)*1000 -> -1301557.412 | J6: ε | K6: =IF(G10=0,0,MMULT(_xlfn.ANCHORARRAY(G10),E6:E7)) -> 0.0001228064327 | L6: - | N6: z | O6: ε | P6: σ
A7: My | B7: =Inputs!B12-B6*Inputs!G17 -> 200 | C7: kNm | E7: =B7+Inputs!G18*Inputs!G12*ElasticStressStrain!I5*(B3Slab!AB68-B3Slab!AB69)*1000-Inputs!G20*ElasticStressStrain!I6*(B3Precast!AB68-B3Precast!AB69)*1000-(Inputs!G21+Inputs!G18^2*Inputs!G12)*ElasticStressStrain!I6*(B3Slab!AB68-B3Slab!AB69)*1000 -> 240.1570682 | G7: =H6 -> -1301557.412 | H7: =(Inputs!G20*B3Precast!AB69+(Inputs!G21+Inputs!G18^2*Inputs!G12)*B3Slab!AB69)*1000 -> 727004.0282 | J7: κy | K7: 0.0005501987272 | L7: 1/m | N7: [m] | O7: [-] | P7: [MPa]
N8: =-Inputs!G8/2-Inputs!G9 -> -0.55 | O8: 0 | P8: 0
G9: Inversion | N9: =-Inputs!G8/2-Inputs!G9 -> -0.55 | O9: =_xlfn.IFS(B2>B3,$K$6+$K$7*N9,B2<=B3,0) -> -0.0001798028673 | P9: =_xlfn.IFS(B2>B3,O9/B3Slab!$AB$55*10^6,B2<=B3,0) -> -1.111451628
G10: =_xlfn.IFS(B2>B3,MINVERSE(G6:H7),B2<=B3,0) -> 2.640930642e-07 | H10: 4.72806576e-07 | N10: =-Inputs!G8/2 -> -0.35 | O10: =_xlfn.IFS(B2>B3,$K$6+$K$7*N10,B2<=B3,0) -> -6.976312182e-05 | P10: =_xlfn.IFS(B2>B3,O10/B3Slab!$AB$55*10^6,B2<=B3,0) -> -0.4312408165
G11: 4.72806576e-07 | H11: 2.221975176e-06 | N11: =-Inputs!G8/2 -> -0.35 | O11: =_xlfn.IFS(B2>B3,$K$6+$K$7*N11,B2<=B3,0) -> -6.976312182e-05 | P11: =_xlfn.IFS(B2>B3,O11/B3Precast!$AB$55*10^6,B2<=B3,0) -> -0.6264892439
N12: =-Inputs!G17 -> -0.2487046632 | O12: =_xlfn.IFS(B2>B3,$K$6+$K$7*N12,B2<=B3,0) -> -1.403055645e-05 | P12: =_xlfn.IFS(B2>B3,O12/B3Precast!$AB$55*10^6,B2<=B3,0) -> -0.1259976972
N13: 0 | O13: =_xlfn.IFS(B2>B3,$K$6+$K$7*N13,B2<=B3,0) -> 0.0001228064327 | P13: =_xlfn.IFS(B2>B3,O13/B3Precast!$AB$55*10^6,B2<=B3,0) -> 1.102830653
N14: =Inputs!G8/2 -> 0.35 | O14: =_xlfn.IFS(B2>B3,$K$6+$K$7*N14,B2<=B3,0) -> 0.0003153759872 | P14: =_xlfn.IFS(B2>B3,O14/B3Precast!$AB$55*10^6,B2<=B3,0) -> 2.832150549
N15: =Inputs!G8/2 -> 0.35 | O15: 0 | P15: 0

Sheet Output
A1: Output
A2: t | B2: =Inputs!L19 -> 3000 | C2: days
A4: Time | B4: Precast model B3 calculation | F4: Slab model B3 calculation | J4: Stress at points | N4: Right side
A5: days | B5: R | C5: E'' | D5: ϕ | E5: J | F5: R | G5: E'' | H5: ϕ | I5: J | J5: 4 | K5: 2 | L5: 1 | M5: 3 | N5: N | O5: M
A6: 0 | B6: 0 | C6: 0 | D6: 0 | E6: 0 | F6: 0 | G6: 0 | H6: 0 | I6: 0 | J6: 0 | K6: 0 | L6: 0 | M6: 0 | N6: 0 | O6: 0
A7: 1 | B7: 0 | C7: 0 | D7: 0 | E7: 0 | F7: 0 | G7: 0 | H7: 0 | I7: 0 | J7: 0 | K7: 0 | L7: 0 | M7: 0 | N7: 0 | O7: 200
A8: 2 | B8: 0 | C8: 0 | D8: 0 | E8: 0 | F8: 0 | G8: 0 | H8: 0 | I8: 0 | J8: 0 | K8: 0 | L8: 0 | M8: 0 | N8: 0 | O8: 200
A9: 3 | B9: 0 | C9: 0 | D9: 0 | E9: 0 | F9: 0 | G9: 0 | H9: 0 | I9: 0 | J9: 0 | K9: 0 | L9: 0 | M9: 0 | N9: 0 | O9: 200
A10: 4 | B10: 0 | C10: 0 | D10: 0 | E10: 0 | F10: 0 | G10: 0 | H10: 0 | I10: 0 | J10: 0 | K10: 0 | L10: 0 | M10: 0 | N10: 0 | O10: 200
A11: 5 | B11: 0 | C11: 0 | D11: 0 | E11: 0 | F11: 0 | G11: 0 | H11: 0 | I11: 0 | J11: 0 | K11: 0 | L11: 0 | M11: 0 | N11: 0 | O11: 200
A12: 6 | B12: 0 | C12: 0 | D12: 0 | E12: 0 | F12: 0 | G12: 0 | H12: 0 | I12: 0 | J12: 0 | K12: 0 | L12: 0 | M12: 0 | N12: 0 | O12: 200
A13: 7 | B13: 0 | C13: 0 | D13: 0 | E13: 0 | F13: 0 | G13: 0 | H13: 0 | I13: 0 | J13: 0 | K13: 0 | L13: 0 | M13: 0 | N13: 0 | O13: 200
A14: 8 | B14: 22916.30768 | C14: 23157.21266 | D14: 0.2540908118 | E14: 43.54430179 | F14: 16844.88027 | G14: 17009.12755 | H14: 0.2566046247 | I14: 59.24725062 | J14: 2.800608771 | K14: -0.4238011071 | L14: -1.132982196 | M14: -0.5766322888 | N14: 0.1932796308 | O14: 201.5830176
A15: 9 | B15: 21736.7515 | C15: 22158.6296 | D15: 0.3187738266 | E15: 45.79021308 | F15: 16037.70617 | G15: 16324.47762 | H15: 0.3168122746 | I15: 62.08596189 | J15: 2.798932213 | K15: -0.4233467648 | L15: -1.134101379 | M15: -0.5740067438 | N15: 0.3511329397 | O15: 202.766327
A16: 10 | B16: 20946.43295 | C16: 21534.84993 | D16: 0.3647069621 | E16: 47.38509464 | F16: 15520.13459 | G16: 15918.79665 | H16: 0.3573992807 | I16: 63.9995857 | J16: 2.797073089 | K16: -0.4228380338 | L16: -1.135347254 | M16: -0.5710964426 | N16: 0.5090408848 | O16: 203.8493744
A17: 11 | B17: 20332.7845 | C17: 21078.35891 | D17: 0.4017180933 | E17: 48.67018807 | F17: 15128.56704 | G17: 15631.86788 | H17: 0.3890087905 | I17: 65.48993239 | J17: 2.795286292 | K17: -0.4223441879 | L17: -1.136549501 | M17: -0.568300502 | N17: 0.6719857801 | O17: 204.8649305
A18: 12 | B18: 19824.5942 | C18: 20719.97737 | D18: 0.4331929656 | E18: 49.76305258 | F18: 14809.56964 | G18: 15411.67921 | H18: 0.4152650292 | I18: 66.72787942 | J18: 2.793627533 | K18: -0.4218814154 | L18: -1.137669982 | M18: -0.5657058954 | N18: 0.84107199 | O18: 205.8265977
A19: 13 | B19: 19387.99218 | C19: 20426.92007 | D19: 0.4607816761 | E19: 50.72098252 | F19: 14538.45896 | G19: 15234.3562 | H19: 0.4378945855 | I19: 67.79483315 | J19: 2.792103814 | K19: -0.4214526557 | L19: -1.138703106 | M19: -0.563323324 | N19: 1.016149402 | O19: 206.7419781
A20: 14 | B20: 19003.78294 | C20: 20180.68077 | D20: 0.4854424793 | E20: 51.57725022 | F20: 14301.63072 | G20: 15086.84229 | H20: 0.4578738351 | I20: 68.73682841 | J20: 2.790707661 | K20: -0.4210567183 | L20: -1.139653117 | M20: -0.5611408765 | N20: 1.196628813 | O20: 207.6161322
A21: 15 | B21: 18659.86771 | C21: 19969.65495 | D21: 0.5077941988 | E21: 52.35334236 | F21: 14090.72117 | G21: 14961.18678 | H21: 0.4758165239 | I21: 69.58280253 | J21: 2.789427557 | K21: -0.4206911168 | L21: -1.140527121 | M21: -0.5591403639 | N21: 1.381789826 | O21: 208.4528274
A22: 16 | B22: 18348.05604 | C22: 19786.03766 | D22: 0.5282657797 | E22: 53.06415268 | F22: 13900.18905 | G22: 14852.18173 | H22: 0.4921372592 | I22: 70.35230367 | J22: 2.788251531 | K22: -0.4203530782 | L22: -1.141332667 | M22: -0.5573029232 | N22: 1.570906435 | O22: 209.2550784
A23: 17 | B23: 18062.5109 | C23: 19624.3102 | D23: 0.5471698945 | E23: 53.72053775 | F23: 13726.15707 | G23: 14756.23065 | H23: 0.5071311342 | I23: 71.0592451 | J23: 2.787168401 | K23: -0.4200399205 | L23: -1.142076882 | M23: -0.555610962 | N23: 1.763298255 | O23: 210.0254125
A24: 18 | B24: 17798.90781 | C24: 19480.42127 | D24: 0.5647431685 | E24: 54.33071362 | F24: 13565.79683 | G24: 14670.74823 | H24: 0.5210166589 | I24: 71.71392927 | J24: 2.786168152 | K24: -0.4197491846 | L24: -1.142766194 | M24: -0.5540487384 | N24: 1.958349204 | O24: 210.7660132
A25: 19 | B25: 17553.94384 | C25: 19351.30846 | D25: 0.5811699415 | E25: 54.9010809 | F25: 13416.97601 | G25: 14593.8166 | H25: 0.5339607359 | I25: 72.32422543 | J25: 2.785241973 | K25: -0.4194786692 | L25: -1.143406287 | M25: -0.552602414 | N25: 2.155511488 | O25: 211.4788055
A26: 20 | B26: 17325.03355 | C26: 19234.60182 | D26: 0.5965971745 | E26: 55.43674233 | F26: 13278.04362 | G26: 14523.97632 | H26: 0.5460940768 | I26: 72.89629645 | J26: 2.78438217 | K26: -0.4192264239 | L26: -1.144002146 | M26: -0.5512599116 | N26: 2.354303014 | O26: 212.1655104
A27: 21 | B27: 17110.11163 | C27: 19128.43147 | D27: 0.611144256 | E27: 55.94184332 | F27: 13147.69287 | G27: 14460.09321 | H27: 0.5575211776 | I27: 73.43506918 | J27: 2.783582039 | K27: -0.4189907284 | L27: -1.144558131 | M27: -0.550010713 | N27: 2.554302057 | O27: 212.8276811
A28: 22 | B28: 16907.49984 | C28: 19031.2979 | D28: 0.6249097075 | E28: 56.4198047 | F28: 13024.86998 | G28: 14401.27015 | H28: 0.5683270288 | I28: 73.94455081 | J28: 2.782835735 | K28: -0.4187700665 | L28: -1.145078056 | M28: -0.5488456514 | N28: 2.755141045 | O28: 213.4667296
A29: 23 | B29: 16715.81444 | C29: 18941.98179 | D29: 0.6379759174 | E29: 56.87348715 | F29: 12908.71168 | G29: 14346.78674 | H29: 0.5785817776 | I29: 74.42804869 | J29: 2.782138149 | K29: -0.4185631004 | L29: -1.145565262 | M29: -0.5477567208 | N29: 2.956500333 | O29: 214.0839466
A30: 24 | B30: 16533.89994 | C30: 18859.47971 | D30: 0.6504125721 | E30: 57.3053103 | F30: 12798.50098 | G30: 14296.05686 | H30: 0.5883440556 | I30: 74.88832723 | J30: 2.781484806 | K30: -0.4183686475 | L30: -1.146022686 | M30: -0.5467369083 | N30: 3.158102364 | O30: 214.6805171
A31: 25 | B31: 16360.78078 | C31: 18782.95715 | D31: 0.6622792016 | E31: 57.71734114 | F31: 12693.63527 | G31: 14248.59817 | H31: 0.5976634116 | I31: 75.32772257 | J31: 2.780871769 | K31: -0.4181856597 | L31: -1.146452914 | M31: -0.5457800504 | N31: 3.359706391 | O31: 215.2575326
A32: 26 | B32: 16195.62519 | C32: 18711.71361 | D32: 0.6736271045 | E32: 58.11136086 | F32: 12593.60268 | G32: 14204.00969 | H32: 0.6065821246 | I32: 75.74822812 | J32: 2.780295567 | K32: -0.4180132052 | L32: -1.146858235 | M32: -0.5448807111 | N32: 3.561103782 | O32: 215.8160017
A33: 27 | B33: 16037.71782 | C33: 18645.15615 | D33: 0.6845008282 | E33: 58.48891622 | F33: 12497.96442 | G33: 14161.95507 | H33: 0.615136582 | I33: 76.15155951 | J33: 2.779753126 | K33: -0.4178504533 | L33: -1.14724068 | M33: -0.5440340789 | N33: 3.762113899 | O33: 216.3568586
A34: 28 | B34: 15886.43862 | C34: 18582.77918 | D34: 0.6949393256 | E34: 58.85135973 | F34: 12406.34114 | G34: 14122.1499 | H34: 0.6233583403 | I34: 76.53920457 | J34: 2.779241713 | K34: -0.417696661 | L34: -1.147602055 | M34: -0.5432358799 | N34: 3.962580503 | O34: 216.8809707
A35: 29 | B35: 15741.24636 | C35: 18524.14861 | D35: 0.7049768693 | E35: 59.19988141 | F35: 12318.40245 | G35: 14084.35187 | H35: 0.631274956 | I35: 76.91246255 | J35: 2.778758894 | K35: -0.4175511618 | L35: -1.147943977 | M35: -0.5424823046 | N35: 4.16236863 | O35: 217.3891448
A36: 30 | B36: 15601.66559 | C36: 18468.88948 | D36: 0.714643784 | E36: 59.53553417 | F36: 12233.85867 | G36: 14048.35324 | H36: 0.6389106424 | I36: 77.27247509 | J36: 2.778302491 | K36: -0.4174133562 | L36: -1.148267891 | M36: -0.5417699466 | N36: 4.361361873 | O36: 217.8821331
A37: 31 | B37: 15467.27621 | C37: 18416.67607 | D37: 0.7239670386 | E37: 59.85925444 | F37: 12152.45422 | G37: 14013.97475 | H37: 0.646286796 | I37: 77.62025101 | J37: 2.777870547 | K37: -0.4172827029 | L37: -1.1485751 | M37: -0.5410957493 | N37: 4.55946003 | O37: 218.3606375
A38: 32 | B38: 15337.70506 | C38: 18367.22399 | D38: 0.7329707304 | E38: 60.17187891 | F38: 12073.96237 | G38: 13981.06092 | H38: 0.6534224221 | I38: 77.95668637 | J38: 2.777461304 | K38: -0.4171587124 | L38: -1.148866776 | M38: -0.5404569626 | N38: 4.756577067 | O38: 218.8253144
A39: 33 | B39: 15212.61905 | C39: 18320.28373 | D39: 0.741676483 | E39: 60.47415839 | F39: 11998.18096 | G39: 13949.47614 | H39: 0.6603344819 | I39: 78.28258087 | J39: 2.777073173 | K39: -0.4170409407 | L39: -1.149143981 | M39: -0.5398511039 | N39: 4.95263934 | O39: 219.2767785
A40: 34 | B40: 15091.7195 | C40: 18275.6354 | D40: 0.7501037775 | E40: 60.7667693 | F40: 11924.92888 | G40: 13919.10161 | H40: 0.6670381787 | I40: 78.59865133 | J40: 2.776704715 | K40: -0.4169289836 | L40: -1.149407676 | M40: -0.5392759264 | N40: 5.147584062 | O40: 219.7156062
A41: 35 | B41: 14974.73751 | C41: 18233.08446 | D41: 0.7582702297 | E41: 61.0503233 | F41: 11854.04317 | G41: 13889.83276 | H41: 0.6735471948 | I41: 78.90554286 | J41: 2.776354626 | K41: -0.4168224728 | L41: -1.149658736 | M41: -0.5387293911 | N41: 5.341357961 | O41: 220.1423386
A42: 36 | B42: 14861.43002 | C42: 18192.45811 | D42: 0.7661918223 | E42: 61.32537532 | F42: 11785.37665 | G42: 13861.57719 | H42: 0.6798738902 | I42: 79.2038382 | J42: 2.776021717 | K42: -0.4167210717 | L42: -1.149897958 | M42: -0.5382096427 | N42: 5.533916114 | O42: 220.5574847
A43: 37 | B43: 14751.57655 | C43: 18153.60232 | D43: 0.7738831029 | E43: 61.5924305 | F43: 11718.79586 | G43: 13834.25296 | H43: 0.6860294683 | I43: 79.49406559 | J43: 2.775704904 | K43: -0.416624472 | L43: -1.15012607 | M43: -0.5377149892 | N43: 5.725220931 | O43: 220.9615231
A44: 38 | B44: 14644.97647 | C44: 18116.37933 | D44: 0.7813573522 | E44: 61.85194996 | F44: 11654.17939 | G44: 13807.78707 | H44: 0.6920241181 | I44: 79.77670542 | J44: 2.775403197 | K44: -0.4165323905 | L44: -1.15034374 | M44: -0.5372438838 | N44: 5.915241265 | O44: 221.3549053
A45: 39 | B45: 14541.44656 | C45: 18080.66553 | D45: 0.7886267275 | E45: 62.10435582 | F45: 11591.41643 | G45: 13782.11435 | H45: 0.6978671331 | I45: 80.05219587 | J45: 2.775115687 | K45: -0.4164445669 | L45: -1.150551579 | M45: -0.5367949092 | N45: 6.103951636 | O45: 221.7380567
A46: 40 | B46: 14440.8191 | C46: 18046.34971 | D46: 0.7957023875 | E46: 62.35003553 | F46: 11530.40555 | G46: 13757.17638 | H46: 0.7035670147 | I46: 80.32093777 | J46: 2.774841542 | K46: -0.4163607613 | L46: -1.150750151 | M46: -0.5363667641 | N46: 6.291331549 | O46: 222.1113795
A47: 41 | B47: 14342.94009 | C47: 18013.33149 | D47: 0.8025945986 | E47: 62.58934557 | F47: 11471.05363 | G47: 13732.92062 | H47: 0.7091315602 | I47: 80.58329875 | J47: 2.774579992 | K47: -0.4162807521 | L47: -1.150939973 | M47: -0.5359582514 | N47: 6.477364896 | O47: 222.4752535
A48: 42 | B48: 14247.66777 | C48: 17981.52007 | D48: 0.8093128288 | E48: 62.82261468 | F48: 11413.27499 | G48: 13709.29976 | H48: 0.7145679388 | I48: 80.83961683 | J48: 2.774330332 | K48: -0.4162043343 | L48: -1.151121525 | M48: -0.5355682676 | N48: 6.662039432 | O48: 222.8300384
A49: 43 | B49: 14154.87134 | C49: 17950.83309 | D49: 0.8158658285 | E49: 63.05014668 | F49: 11356.99055 | G49: 13686.27098 | H49: 0.7198827582 | I49: 81.09020356 | J49: 2.774091908 | K49: -0.416131318 | L49: -1.15129525 | M49: -0.5351957935 | N49: 6.84534631 | O49: 223.1760744
A50: 44 | B50: 14064.42982 | C50: 17921.19564 | D50: 0.8222617018 | E50: 63.27222298 | F50: 11302.12721 | G50: 13663.79552 | H50: 0.7250821217 | I50: 81.33534669 | J50: 2.773864115 | K50: -0.416061527 | L50: -1.151461557 | M50: -0.5348398863 | N50: 7.027279679 | O50: 223.5136844
A51: 45 | B51: 13976.2311 | C51: 17892.5395 | D51: 0.8285079685 | E51: 63.48910466 | F51: 11248.6172 | G51: 13641.83814 | H51: 0.7301716789 | I51: 81.57531259 | J51: 2.773646393 | K51: -0.4159947974 | L51: -1.151620828 | M51: -0.5344996724 | N51: 7.207836318 | O51: 223.8431746
A52: 46 | B52: 13890.17104 | C52: 17864.80232 | D52: 0.8346116197 | E52: 63.70103447 | F52: 11196.39759 | G52: 13620.36677 | H52: 0.7351566695 | I52: 81.81034833 | J52: 2.773438222 | K52: -0.4159309767 | L52: -1.151773416 | M52: -0.5341743407 | N52: 7.387015325 | O52: 224.1648357
A53: 47 | B53: 13806.15276 | C53: 17837.9271 | D53: 0.840579166 | E53: 63.90823847 | F53: 11145.40982 | G53: 13599.35212 | H53: 0.7400419627 | I53: 82.04068346 | J53: 2.773239119 | K53: -0.4158699227 | L53: -1.151919651 | M53: -0.5338631372 | N53: 7.564817832 | O53: 224.4789439
A54: 48 | B54: 13724.08594 | C54: 17811.86152 | D54: 0.846416681 | E54: 64.11092755 | F54: 11095.59932 | G54: 13578.76742 | H54: 0.7448320913 | I54: 82.2665317 | J54: 2.773048633 | K54: -0.4158115025 | L54: -1.15205984 | M54: -0.5335653602 | N54: 7.741246759 | O54: 224.7857621
A55: 49 | B55: 13643.88621 | C55: 17786.55756 | D55: 0.8521298396 | E55: 64.30929876 | F55: 11046.91511 | G55: 13558.58813 | H55: 0.749531282 | I55: 82.48809235 | J55: 2.772866344 | K55: -0.415755592 | L55: -1.15219427 | M55: -0.533280355 | N55: 7.916306594 | O55: 225.0855403
A56: 50 | B56: 13565.47468 | C56: 17761.971 | D56: 0.8577239522 | E56: 64.50353646 | F56: 10999.30951 | G56: 13538.79173 | H56: 0.7541434829 | I56: 82.70555154 | J56: 2.77269186 | K56: -0.415702075 | L56: -1.152323208 | M56: -0.5330075105 | N56: 8.090003194 | O56: 225.3785166
A57: 51 | B57: 13488.77744 | C57: 17738.0611 | D57: 0.8632039953 | E57: 64.69381348 | F57: 10952.73785 | G57: 13519.35747 | H57: 0.7586723872 | I57: 82.9190834 | J57: 2.772524815 | K57: -0.4156508426 | L57: -1.152446907 | M57: -0.5327462555 | N57: 8.26234362 | O57: 225.6649182
A58: 52 | B58: 13413.72512 | C58: 17714.79022 | D58: 0.8685746393 | E58: 64.88029195 | F58: 10907.15822 | G58: 13500.26627 | H58: 0.7631214551 | I58: 83.12885108 | J58: 2.772364866 | K58: -0.4156017926 | L58: -1.152565601 | M58: -0.5324960552 | N58: 8.433335974 | O58: 225.9449615
A59: 53 | B59: 13340.25257 | C59: 17692.12356 | D59: 0.8738402727 | E59: 65.06312427 | F59: 10862.53123 | G59: 13481.50049 | H59: 0.7674939329 | I59: 83.33500764 | J59: 2.77221169 | K59: -0.4155548288 | L59: -1.152679511 | M59: -0.5322564083 | N59: 8.602989268 | O59: 226.2188532
A60: 54 | B60: 13268.29847 | C60: 17670.02888 | D60: 0.8790050249 | E60: 65.24245381 | F60: 10818.81983 | G60: 13463.04382 | H60: 0.7717928703 | I60: 83.53769687 | J60: 2.772064986 | K60: -0.415509861 | L60: -1.152788844 | M60: -0.5320268443 | N60: 8.7713133 | O60: 226.4867907
A61: 55 | B61: 13197.80505 | C61: 17648.47628 | D61: 0.8840727858 | E61: 65.41841564 | F61: 10775.98911 | G61: 13444.88115 | H61: 0.7760211363 | I61: 83.73705404 | J61: 2.771924471 | K61: -0.4154668042 | L61: -1.152893795 | M61: -0.5318069215 | N61: 8.938318547 | O61: 226.7489625
A62: 56 | B62: 13128.71783 | C62: 17627.43799 | D62: 0.8890472244 | E62: 65.59113714 | F62: 10734.00614 | G62: 13426.99848 | H62: 0.7801814333 | I62: 83.93320655 | J62: 2.771789877 | K62: -0.4154255781 | L62: -1.152994549 | M62: -0.5315962243 | N62: 9.10401607 | O62: 227.0055492
A63: 57 | B63: 13060.98533 | C63: 17606.88817 | D63: 0.8939318049 | E63: 65.76073862 | F63: 10692.83982 | G63: 13409.38278 | H63: 0.7842763092 | I63: 84.12627455 | J63: 2.771660953 | K63: -0.4153861072 | L63: -1.153091278 | M63: -0.5313943613 | N63: 9.268417423 | O63: 227.2567232
A64: 58 | B64: 12994.5589 | C64: 17586.80274 | D64: 0.8987298019 | E64: 65.92733375 | F64: 10652.46074 | G64: 13392.02196 | H64: 0.7883081699 | I64: 84.31637146 | J64: 2.771537463 | K64: -0.41534832 | L64: -1.153184146 | M64: -0.5312009638 | N64: 9.431534581 | O64: 227.5026497
A65: 59 | B65: 12929.39248 | C65: 17567.15928 | D65: 0.903444314 | E65: 66.09103014 | F65: 10612.84106 | G65: 13374.90471 | H65: 0.7922792889 | I65: 84.50360449 | J65: 2.771419183 | K65: -0.415312149 | L65: -1.153273307 | M65: -0.531015684 | N65: 9.593379874 | O65: 227.7434871
A66: 60 | B66: 12865.44243 | C66: 17547.93682 | D66: 0.9080782761 | E66: 66.25192969 | F66: 10573.95442 | G66: 13358.02053 | H66: 0.7961918176 | I66: 84.68807506 | J66: 2.771305903 | K66: -0.4152775303 | L66: -1.153358907 | M66: -0.5308381933 | N66: 9.753965918 | O66: 227.979387
A67: 61 | B67: 12802.66734 | C67: 17529.11578 | D67: 0.9126344709 | E67: 66.41012901 | F67: 10535.77578 | G67: 13341.35956 | H67: 0.8000477933 | I67: 84.86987922 | J67: 2.771197422 | K67: -0.4152444035 | L67: -1.153441083 | M67: -0.5306681812 | N67: 9.913305571 | O67: 228.2104949
A68: 62 | B68: 12741.02792 | C68: 17510.67782 | D68: 0.9171155391 | E68: 66.56571981 | F68: 10498.2814 | G68: 13324.91263 | H68: 0.8038491476 | I68: 85.04910806 | J68: 2.771093553 | K68: -0.4152127113 | L68: -1.153519968 | M68: -0.530505354 | N68: 10.07141188 | O68: 228.4369504
A69: 63 | B69: 12680.48681 | C69: 17492.60576 | D69: 0.921523989 | E69: 66.71878916 | F69: 10461.44871 | G69: 13308.67111 | H69: 0.8075977133 | I69: 85.22584799 | J69: 2.770994116 | K69: -0.4151823992 | L69: -1.153595684 | M69: -0.5303494336 | N69: 10.22829803 | O69: 228.6588874
A70: 64 | B70: 12621.00848 | C70: 17474.88349 | D70: 0.9258622053 | E70: 66.86941988 | F70: 10425.25623 | G70: 13292.62692 | H70: 0.8112952314 | I70: 85.40018109 | J70: 2.770898943 | K70: -0.4151534156 | L70: -1.153668349 | M70: -0.5302001564 | N70: 10.38397732 | O70: 228.8764345
A71: 65 | B71: 12562.5591 | C71: 17457.49589 | D71: 0.9301324569 | E71: 67.01769074 | F71: 10389.68352 | G71: 13276.77249 | H71: 0.8149433568 | I71: 85.5721854 | J71: 2.770807873 | K71: -0.4151257116 | L71: -1.153738076 | M71: -0.5300572723 | N71: 10.53846314 | O71: 229.0897155
A72: 66 | B72: 12505.10645 | C72: 17440.42874 | D72: 0.9343369044 | E72: 67.16367677 | F72: 10354.71111 | G72: 13261.10069 | H72: 0.8185436642 | I72: 85.74193514 | J72: 2.770720754 | K72: -0.4150992404 | L72: -1.153804969 | M72: -0.5299205443 | N72: 10.69176888 | O72: 229.2988492
A73: 67 | B73: 12448.61978 | C73: 17423.66866 | D73: 0.938477607 | E73: 67.30744945 | F73: 10320.32042 | G73: 13245.60483 | H73: 0.8220976531 | I73: 85.90950103 | J73: 2.77063744 | K73: -0.4150739578 | L73: -1.15386913 | M73: -0.5297897468 | N73: 10.843908 | O73: 229.5039498
A74: 68 | B74: 12393.06976 | C74: 17407.20306 | D74: 0.9425565285 | E74: 67.44907699 | F74: 10286.49373 | G74: 13230.27858 | H74: 0.8256067524 | I74: 86.07495043 | J74: 2.770557794 | K74: -0.4150498214 | L74: -1.153930654 | M74: -0.5296646656 | N74: 10.99489392 | O74: 229.7051274
A75: 69 | B75: 12338.42839 | C75: 17391.02006 | D75: 0.9465755434 | E75: 67.58862445 | F75: 10253.21412 | G75: 13215.11599 | H75: 0.8290723251 | I75: 86.23834761 | J75: 2.770481686 | K75: -0.4150267912 | L75: -1.153989634 | M75: -0.5295450969 | N75: 11.14474003 | O75: 229.9024879
A76: 70 | B76: 12284.66887 | C76: 17375.10847 | D76: 0.9505364418 | E76: 67.72615401 | F76: 10220.4654 | G76: 13200.11146 | H76: 0.8324956719 | I76: 86.3997539 | J76: 2.77040899 | K76: -0.4150048286 | L76: -1.154046156 | M76: -0.5294308466 | N76: 11.2934597 | O76: 230.0961331
A77: 71 | B77: 12231.7656 | C77: 17359.4577 | D77: 0.9544409351 | E77: 67.86172508 | F77: 10188.23211 | G77: 13185.25967 | H77: 0.8358780354 | I77: 86.55922788 | J77: 2.770339588 | K77: -0.4149838971 | L77: -1.154100304 | M77: -0.5293217299 | N77: 11.44106621 | O77: 230.2861614
A78: 72 | B78: 12179.69408 | C78: 17344.05778 | D78: 0.9582906597 | E78: 67.99539448 | F78: 10156.49943 | G78: 13170.55562 | H78: 0.8392206031 | I78: 86.71682554 | J78: 2.770273367 | K78: -0.4149639619 | L78: -1.154152156 | M78: -0.5292175707 | N78: 11.58757279 | O78: 230.4726673
A79: 73 | B79: 12128.43081 | C79: 17328.89924 | D79: 0.962087182 | E79: 68.12721661 | F79: 10125.25319 | G79: 13155.99455 | H79: 0.8425245111 | I79: 86.87260044 | J79: 2.770210218 | K79: -0.4149449894 | L79: -1.154201788 | M79: -0.5291182007 | N79: 11.73299255 | O79: 230.6557423
A80: 74 | B80: 12077.95331 | C80: 17313.97314 | D80: 0.965832002 | E80: 68.25724353 | F80: 10094.47979 | G80: 13141.57196 | H80: 0.8457908464 | I80: 87.02660384 | J80: 2.770150039 | K80: -0.4149269479 | L80: -1.154249273 | M80: -0.5290234596 | N80: 11.87733851 | O80: 230.8354743
A81: 75 | B81: 12028.23999 | C81: 17299.271 | D81: 0.9695265572 | E81: 68.38552517 | F81: 10064.1662 | G81: 13127.2836 | H81: 0.8490206503 | I81: 87.17888484 | J81: 2.770092731 | K81: -0.4149098068 | L81: -1.15429468 | M81: -0.5289331942 | N81: 12.0206236 | O81: 231.0119483
A82: 76 | B82: 11979.27016 | C82: 17284.7848 | D82: 0.9731722258 | E82: 68.51210938 | F82: 10034.29992 | G82: 13113.12542 | H82: 0.8522149206 | I82: 87.32949047 | J82: 2.7700382 | K82: -0.414893537 | L82: -1.154338074 | M82: -0.528847258 | N82: 12.16286061 | O82: 231.1852464
A83: 77 | B83: 11931.02393 | C83: 17270.50689 | D83: 0.97677033 | E83: 68.63704207 | F83: 10004.86895 | G83: 13099.09357 | H83: 0.8553746143 | I83: 87.47846586 | J83: 2.769986357 | K83: -0.4148781105 | L83: -1.15437952 | M83: -0.528765511 | N83: 12.30406221 | O83: 231.3554477
A84: 78 | B84: 11883.48222 | C84: 17256.43006 | D84: 0.9803221393 | E84: 68.76036731 | F84: 9975.86175 | G84: 13085.18441 | H84: 0.8585006492 | I84: 87.62585428 | J84: 2.769937114 | K84: -0.4148635006 | L84: -1.154419077 | M84: -0.5286878193 | N84: 12.44424092 | O84: 231.5226288
A85: 79 | B85: 11836.62666 | C85: 17242.54742 | D85: 0.9838288726 | E85: 68.88212744 | F85: 9947.267244 | G85: 13071.39445 | H85: 0.8615939068 | I85: 87.7716973 | J85: 2.76989039 | K85: -0.4148496815 | L85: -1.154456804 | M85: -0.5286140546 | N85: 12.58340915 | O85: 231.6868635
A86: 80 | B86: 11790.43961 | C86: 17228.85243 | D86: 0.9872917016 | E86: 69.00236313 | F86: 9919.074775 | G86: 13057.7204 | H86: 0.8646552337 | I86: 87.91603482 | J86: 2.769846106 | K86: -0.4148366289 | L86: -1.154492756 | M86: -0.5285440941 | N86: 12.72157916 | O86: 231.8482234
A87: 81 | B87: 11744.90409 | C87: 17215.33888 | D87: 0.9907117526 | E87: 69.12111348 | F87: 9891.274088 | G87: 13044.1591 | H87: 0.8676854433 | I87: 88.05890521 | J87: 2.769804187 | K87: -0.4148243189 | L87: -1.154526987 | M87: -0.5284778201 | N87: 12.85876304 | O87: 232.0067775
A88: 82 | B88: 11700.00375 | C88: 17202.00084 | D88: 0.9940901092 | E88: 69.23841614 | F88: 9863.855315 | G88: 13030.70754 | H88: 0.8706853182 | I88: 88.20034535 | J88: 2.769764559 | K88: -0.4148127291 | L88: -1.154559548 | M88: -0.5284151199 | N88: 12.99497277 | O88: 232.1625928
A89: 83 | B89: 11655.72284 | C89: 17188.83268 | D89: 0.9974278144 | E89: 69.3543073 | F89: 9836.80895 | G89: 13017.36287 | H89: 0.8736556109 | I89: 88.34039074 | J89: 2.769727153 | K89: -0.4148018377 | L89: -1.154590488 | M89: -0.5283558851 | N89: 13.13022015 | O89: 232.3157339
A90: 84 | B90: 11612.04618 | C90: 17175.82901 | D90: 1.000725872 | E90: 69.46882184 | F90: 9810.125835 | G90: 13004.12233 | H90: 0.8765970461 | I90: 88.47907552 | J90: 2.769691902 | K90: -0.4147916237 | L90: -1.154619854 | M90: -0.5283000118 | N90: 13.26451684 | O90: 232.4662634
A91: 85 | B91: 11568.95915 | C91: 17162.98471 | D91: 1.00398525 | E91: 69.58199334 | F91: 9783.797141 | G91: 12990.98333 | H91: 0.8795103212 | I91: 88.61643261 | J91: 2.769658743 | K91: -0.4147820671 | L91: -1.154647693 | M91: -0.5282474004 | N91: 13.39787432 | O91: 232.6142419
A92: 86 | B92: 11526.44763 | C92: 17150.29489 | D92: 1.007206881 | E92: 69.69385418 | F92: 9757.814354 | G92: 12977.94334 | H92: 0.8823961087 | I92: 88.75249368 | J92: 2.769627613 | K92: -0.4147731486 | L92: -1.154674047 | M92: -0.528197955 | N92: 13.53030395 | O92: 232.7597282
A93: 87 | B93: 11484.49802 | C93: 17137.75486 | D93: 1.010391663 | E93: 69.80443557 | F93: 9732.169258 | G93: 12964.99999 | H93: 0.8852550565 | I93: 88.8872893 | J93: 2.769598454 | K93: -0.4147648497 | L93: -1.154698958 | M93: -0.5281515835 | N93: 13.66181692 | O93: 232.9027791
A94: 88 | B94: 11443.09717 | C94: 17125.36016 | D94: 1.013540464 | E94: 69.91376764 | F94: 9706.853925 | G94: 12952.15098 | H94: 0.8880877894 | I94: 89.02084892 | J94: 2.769571209 | K94: -0.4147571524 | L94: -1.154722467 | M94: -0.5281081974 | N94: 13.79242424 | O94: 233.0434497
A95: 89 | B95: 11402.23239 | C95: 17113.10652 | D95: 1.016654121 | E95: 70.02187944 | F95: 9681.860696 | G95: 12939.39412 | H95: 0.8908949104 | I95: 89.15320097 | J95: 2.769545822 | K95: -0.4147500396 | L95: -1.154744613 | M95: -0.5280677115 | N95: 13.92213679 | O95: 233.1817935
A96: 90 | B96: 11361.89141 | C96: 17100.98986 | D96: 1.019733442 | E96: 70.12879903 | F96: 9657.182174 | G96: 12926.72729 | H96: 0.8936770013 | I96: 89.28437289 | J96: 2.769522242 | K96: -0.4147434947 | L96: -1.154765433 | M96: -0.5280300439 | N96: 14.05096529 | O96: 233.3178624
A97: 91 | B97: 11322.06238 | C97: 17089.00626 | D97: 1.022779207 | E97: 70.23455351 | F97: 9632.81121 | G97: 12914.14849 | H97: 0.8964346241 | I97: 89.41439116 | J97: 2.769500418 | K97: -0.4147375017 | L97: -1.154784964 | M97: -0.5279951157 | N97: 14.17892029 | O97: 233.4517064
A98: 92 | B98: 11282.73384 | C98: 17077.15199 | D98: 1.025792171 | E98: 70.33916907 | F98: 9608.740891 | G98: 12901.65578 | H98: 0.8991683214 | I98: 89.54328139 | J98: 2.7694803 | K98: -0.4147320452 | L98: -1.15480324 | M98: -0.5279628508 | N98: 14.3060122 | O98: 233.5833744
A99: 93 | B99: 11243.8947 | C99: 17065.42345 | D99: 1.028773062 | E99: 70.44267102 | F99: 9584.964532 | G99: 12889.24728 | H99: 0.901878618 | I99: 89.67106829 | J99: 2.769461842 | K99: -0.4147271105 | L99: -1.154820294 | M99: -0.5279331762 | N99: 14.43225126 | O99: 233.7129138
A100: 94 | B100: 11205.53425 | C100: 17053.81721 | D100: 1.031722586 | E100: 70.54508383 | F100: 9561.475666 | G100: 12876.92123 | H100: 0.9045660208 | I100: 89.79777579 | J100: 2.769444998 | K100: -0.4147226831 | L100: -1.15483616 | M100: -0.5279060211 | N100: 14.55764756 | O100: 233.8403703
A101: 95 | B101: 11167.64209 | C101: 17042.32997 | D101: 1.034641425 | E101: 70.64643119 | F101: 9538.26803 | G101: 12864.67588 | H101: 0.9072310203 | I101: 89.923427 | J101: 2.769429725 | K101: -0.4147187493 | L101: -1.154850867 | M101: -0.5278813176 | N101: 14.68221105 | O101: 233.9657886
A102: 96 | B102: 11130.20816 | C102: 17030.95856 | D102: 1.037530238 | E102: 70.746736 | F102: 9515.335565 | G102: 12852.5096 | H102: 0.9098740911 | I102: 90.04804431 | J102: 2.769415981 | K102: -0.4147152957 | L102: -1.154864447 | M102: -0.5278590001 | N102: 14.80595152 | O102: 234.0892121
A103: 97 | B103: 11093.22274 | C103: 17019.69994 | D103: 1.040389664 | E103: 70.84602045 | F103: 9492.672397 | G103: 12840.42079 | H103: 0.9124956924 | I103: 90.17164935 | J103: 2.769403724 | K103: -0.4147123095 | L103: -1.154876929 | M103: -0.5278390052 | N103: 14.92887861 | O103: 234.2106826
A104: 98 | B104: 11056.67638 | C104: 17008.55121 | D104: 1.043220322 | E104: 70.94430602 | F104: 9470.272839 | G104: 12828.40792 | H104: 0.9150962689 | I104: 90.2942631 | J104: 2.769392916 | K104: -0.4147097783 | L104: -1.15488834 | M104: -0.5278212718 | N104: 15.05100181 | O104: 234.3302412
A105: 99 | B105: 11020.55993 | C105: 16997.50955 | D105: 1.046022811 | E105: 71.04161351 | F105: 9448.131376 | G105: 12816.4695 | H105: 0.9176762512 | I105: 90.41590586 | J105: 2.769383519 | K105: -0.4147076899 | L105: -1.154898708 | M105: -0.5278057409 | N105: 15.17233046 | O105: 234.4479274
A106: 100 | B106: 10984.86452 | C106: 16986.57226 | D106: 1.048797712 | E106: 71.13796309 | F106: 9426.242664 | G106: 12804.60411 | H106: 0.9202360566 | I106: 90.53659731 | J106: 2.769375495 | K106: -0.4147060329 | L106: -1.154908059 | M106: -0.5277923555 | N106: 15.29287378 | O106: 234.56378
A107: 101 | B107: 10949.58155 | C107: 16975.73677 | D107: 1.051545588 | E107: 71.2333743 | F107: 9404.601517 | G107: 12792.81039 | H107: 0.9227760895 | I107: 90.65635651 | J107: 2.76936881 | K107: -0.4147047959 | L107: -1.154916419 | M107: -0.5277810604 | N107: 15.41264081 | O107: 234.6778365
A108: 102 | B108: 10914.70267 | C108: 16965.00056 | D108: 1.054266984 | E108: 71.32786609 | F108: 9383.202906 | G108: 12781.08699 | H108: 0.925296742 | I108: 90.77520195 | J108: 2.76936343 | K108: -0.4147039681 | L108: -1.154923812 | M108: -0.5277718025 | N108: 15.53164047 | O108: 234.7901332
A109: 103 | B109: 10880.21978 | C109: 16954.36125 | D109: 1.05696243 | E109: 71.42145686 | F109: 9362.04195 | G109: 12769.43265 | H109: 0.9277983943 | I109: 90.89315156 | J109: 2.769359321 | K109: -0.414703539 | L109: -1.154930261 | M109: -0.5277645302 | N109: 15.64988155 | O109: 234.9007059
A110: 104 | B110: 10846.12502 | C110: 16943.81651 | D110: 1.05963244 | E110: 71.51416443 | F110: 9341.113911 | G110: 12757.84612 | H110: 0.9302814154 | I110: 91.01022273 | J110: 2.769356451 | K110: -0.4147034984 | L110: -1.154935791 | M110: -0.5277591937 | N110: 15.76737269 | O110: 235.0095889
A111: 105 | B111: 10812.41073 | C111: 16933.36413 | D111: 1.062277512 | E111: 71.60600611 | F111: 9320.414188 | G111: 12746.32621 | H111: 0.9327461632 | I111: 91.12643234 | J111: 2.769354789 | K111: -0.4147038365 | L111: -1.154940422 | M111: -0.5277557449 | N111: 15.88412239 | O111: 235.1168159
A112: 106 | B112: 10779.06952 | C112: 16923.00195 | D112: 1.06489813 | E112: 71.69699872 | F112: 9299.938313 | G112: 12734.87177 | H112: 0.9351929853 | I112: 91.24179677 | J112: 2.769354306 | K112: -0.4147045438 | L112: -1.154944178 | M112: -0.5277541372 | N112: 16.00013902 | O112: 235.2224197
A113: 107 | B113: 10746.09415 | C113: 16912.7279 | D113: 1.067494765 | E113: 71.78715857 | F113: 9279.681943 | G113: 12723.48167 | H113: 0.937622219 | I113: 91.35633194 | J113: 2.769354972 | K113: -0.4147056109 | L113: -1.154947078 | M113: -0.5277543254 | N113: 16.11543083 | O113: 235.3264321
A114: 108 | B114: 10713.47764 | C114: 16902.53999 | D114: 1.070067872 | E114: 71.87650153 | F114: 9259.640861 | G114: 12712.15483 | H114: 0.9400341922 | I114: 91.47005329 | J114: 2.76935676 | K114: -0.414707029 | L114: -1.154949142 | M114: -0.5277562658 | N114: 16.23000593 | O114: 235.428884
A115: 109 | B115: 10681.21316 | C115: 16892.43629 | D115: 1.072617897 | E115: 71.96504298 | F115: 9239.810963 | G115: 12700.89021 | H115: 0.9424292233 | I115: 91.58297585 | J115: 2.769359642 | K115: -0.4147087894 | L115: -1.154950392 | M115: -0.5277599161 | N115: 16.34387231 | O115: 235.5298058
A116: 110 | B116: 10649.2941 | C116: 16882.41494 | D116: 1.075145269 | E116: 72.05279792 | F116: 9220.188263 | G116: 12689.68679 | H116: 0.9448076217 | I116: 91.6951142 | J116: 2.769363591 | K116: -0.4147108837 | L116: -1.154950844 | M116: -0.5277652352 | N116: 16.45703783 | O116: 235.6292268
A117: 111 | B117: 10617.714 | C117: 16872.47415 | D117: 1.077650408 | E117: 72.13978089 | F117: 9200.768882 | G117: 12678.54359 | H117: 0.9471696882 | I117: 91.80648252 | J117: 2.769368583 | K117: -0.4147133037 | L117: -1.154950519 | M117: -0.5277721834 | N117: 16.56951022 | O117: 235.7271758
A118: 112 | B118: 10586.4666 | C118: 16862.61217 | D118: 1.080133722 | E118: 72.22600604 | F118: 9181.549047 | G118: 12667.45965 | H118: 0.9495157155 | I118: 91.91709461 | J118: 2.769374592 | K118: -0.4147160416 | L118: -1.154949434 | M118: -0.5277807222 | N118: 16.68129711 | O118: 235.8236806
A119: 113 | B119: 10555.5458 | C119: 16852.82733 | D119: 1.082595608 | E119: 72.31148716 | F119: 9162.525086 | G119: 12656.43405 | H119: 0.951845988 | I119: 92.02696389 | J119: 2.769381595 | K119: -0.4147190896 | L119: -1.154947606 | M119: -0.5277908141 | N119: 16.79240599 | O119: 235.9187684
A120: 114 | B120: 10524.94567 | C120: 16843.11802 | D120: 1.08503645 | E120: 72.39623763 | F120: 9143.693424 | G120: 12645.4659 | H120: 0.9541607826 | I120: 92.1361034 | J120: 2.769389568 | K120: -0.4147224403 | L120: -1.154945052 | M120: -0.527802423 | N120: 16.90284424 | O120: 236.012466
A121: 115 | B121: 10494.66041 | C121: 16833.48265 | D121: 1.087456625 | E121: 72.48027049 | F121: 9125.050584 | G121: 12634.55431 | H121: 0.9564603685 | I121: 92.24452584 | J121: 2.769398488 | K121: -0.4147260865 | L121: -1.154941789 | M121: -0.5278155137 | N121: 17.01261912 | O121: 236.104799
A122: 116 | B122: 10464.68439 | C122: 16823.91973 | D122: 1.089856499 | E122: 72.56359844 | F122: 9106.593178 | G122: 12623.69846 | H122: 0.9587450081 | I122: 92.35224358 | J122: 2.769408334 | K122: -0.4147300212 | L122: -1.154937832 | M122: -0.5278300519 | N122: 17.1217378 | O122: 236.1957928
A123: 117 | B123: 10435.01214 | C123: 16814.42777 | D123: 1.092236426 | E123: 72.64623383 | F123: 9088.317904 | G123: 12612.89751 | H123: 0.9610149565 | I123: 92.45926865 | J123: 2.769419085 | K123: -0.4147342375 | L123: -1.154933197 | M123: -0.5278460047 | N123: 17.23020731 | O123: 236.285472
A124: 118 | B124: 10405.63831 | C124: 16805.00537 | D124: 1.094596755 | E124: 72.72818869 | F124: 9070.22155 | G124: 12602.15068 | H124: 0.9632704623 | I124: 92.56561278 | J124: 2.769430719 | K124: -0.4147387289 | L124: -1.154927899 | M124: -0.5278633398 | N124: 17.33803457 | O124: 236.3738607
A125: 119 | B125: 10376.55769 | C125: 16795.65113 | D125: 1.096937821 | E125: 72.80947475 | F125: 9052.300981 | G125: 12591.45718 | H125: 0.9655117678 | I125: 92.67128738 | J125: 2.769443217 | K125: -0.4147434889 | L125: -1.154921953 | M125: -0.5278820261 | N125: 17.44522643 | O125: 236.4609822
A126: 120 | B126: 10347.7652 | C126: 16786.36374 | D126: 1.099259955 | E126: 72.89010343 | F126: 9034.553146 | G126: 12580.81626 | H126: 0.9677391088 | I126: 92.77630357 | J126: 2.769456559 | K126: -0.4147485113 | L126: -1.154915372 | M126: -0.527902033 | N126: 17.55178959 | O126: 236.5468594
A127: 121 | B127: 10319.2559 | C127: 16777.1419 | D127: 1.101563476 | E127: 72.97008586 | F127: 9016.975068 | G127: 12570.22719 | H127: 0.9699527153 | I127: 92.88067219 | J127: 2.769470726 | K127: -0.41475379 | L127: -1.154908171 | M127: -0.5279233313 | N127: 17.65773067 | O127: 236.6315146
A128: 122 | B128: 10291.02496 | C128: 16767.98436 | D128: 1.103848697 | E128: 73.04943289 | F128: 8999.563844 | G128: 12559.68925 | H128: 0.9721528113 | I128: 92.98440382 | J128: 2.7694857 | K128: -0.4147593191 | L128: -1.154900363 | M128: -0.5279458921 | N128: 17.76305619 | O128: 236.7149698
A129: 123 | B129: 10263.06767 | C129: 16758.8899 | D129: 1.106115924 | E129: 73.1281551 | F129: 8982.316645 | G129: 12549.20176 | H129: 0.9743396154 | I129: 93.08750875 | J129: 2.769501464 | K129: -0.4147650929 | L129: -1.15489196 | M129: -0.5279696878 | N129: 17.86777256 | O129: 236.797246
A130: 124 | B130: 10235.37943 | C130: 16749.85734 | D130: 1.108365453 | E130: 73.2062628 | F130: 8965.230709 | G130: 12538.76403 | H130: 0.9765133406 | I130: 93.18999702 | J130: 2.769517998 | K130: -0.4147711058 | L130: -1.154882976 | M130: -0.5279946911 | N130: 17.97188609 | O130: 236.8783642
A131: 125 | B131: 10207.95578 | C131: 16740.88556 | D131: 1.110597573 | E131: 73.28376605 | F131: 8948.303344 | G131: 12528.37541 | H131: 0.9786741947 | I131: 93.29187844 | J131: 2.769535287 | K131: -0.4147773523 | L131: -1.154873423 | M131: -0.5280208758 | N131: 18.07540301 | O131: 236.9583445
A132: 126 | B132: 10180.79233 | C132: 16731.97343 | D132: 1.112812568 | E132: 73.36067469 | F132: 8931.531919 | G132: 12518.03526 | H132: 0.9808223806 | I132: 93.39316257 | J132: 2.769553315 | K132: -0.4147838272 | L132: -1.154863313 | M132: -0.5280482162 | N132: 18.17832943 | O132: 237.0372069
A133: 127 | B133: 10153.88482 | C133: 16723.11989 | D133: 1.115010713 | E133: 73.43699827 | F133: 8914.913871 | G133: 12507.74294 | H133: 0.9829580959 | I133: 93.49385874 | J133: 2.769572065 | K133: -0.4147905253 | L133: -1.154852658 | M133: -0.5280766874 | N133: 18.28067139 | O133: 237.1149707
A134: 128 | B134: 10127.22907 | C134: 16714.32388 | D134: 1.117192278 | E134: 73.51274615 | F134: 8898.446694 | G134: 12497.49786 | H134: 0.9850815339 | I134: 93.59397604 | J134: 2.769591521 | K134: -0.4147974417 | L134: -1.154841469 | M134: -0.5281062653 | N134: 18.38243483 | O134: 237.1916548
A135: 129 | B135: 10100.82103 | C135: 16705.5844 | D135: 1.119357526 | E135: 73.58792746 | F135: 8882.127942 | G135: 12487.29942 | H135: 0.987192883 | I135: 93.69352336 | J135: 2.769611669 | K135: -0.4148045715 | L135: -1.154829757 | M135: -0.528136926 | N135: 18.48362559 | O135: 237.2672777
A136: 130 | B136: 10074.65671 | C136: 16696.90046 | D136: 1.121506712 | E136: 73.66255111 | F136: 8865.955228 | G136: 12477.14704 | H136: 0.9892923271 | I136: 93.79250938 | J136: 2.769632493 | K136: -0.4148119098 | L136: -1.154817532 | M136: -0.5281686468 | N136: 18.58424945 | O136: 237.3418575
A137: 131 | B137: 10048.73224 | C137: 16688.27109 | D137: 1.123640089 | E137: 73.7366258 | F137: 8849.926219 | G137: 12467.04015 | H137: 0.9913800461 | I137: 93.89094258 | J137: 2.76965398 | K137: -0.4148194522 | L137: -1.154804807 | M137: -0.5282014052 | N137: 18.68431207 | O137: 237.4154118
A138: 132 | B138: 10023.04381 | C138: 16679.69538 | D138: 1.1257579 | E138: 73.81016002 | F138: 8834.038636 | G138: 12456.97821 | H138: 0.9934562155 | I138: 93.98883123 | J138: 2.769676115 | K138: -0.414827194 | L138: -1.15479159 | M138: -0.5282351795 | N138: 18.78381905 | O138: 237.487958
A139: 133 | B139: 9997.587727 | C139: 16671.17242 | D139: 1.127860384 | E139: 73.88316208 | F139: 8818.290252 | G139: 12446.96066 | H139: 0.9955210066 | I139: 94.08618341 | J139: 2.769698885 | K139: -0.414835131 | L139: -1.154777891 | M139: -0.5282699483 | N139: 18.88277589 | O139: 237.559513
A140: 134 | B140: 9972.360364 | C140: 16662.70131 | D140: 1.129947776 | E140: 73.9556401 | F140: 8802.678891 | G140: 12436.987 | H140: 0.9975745871 | I140: 94.18300702 | J140: 2.769722276 | K140: -0.4148432588 | L140: -1.154763721 | M140: -0.5283056912 | N140: 18.98118803 | O140: 237.6300931
A141: 135 | B141: 9947.358181 | C141: 16654.28122 | D141: 1.132020303 | E141: 74.02760199 | F141: 8787.202427 | G141: 12427.05669 | H141: 0.9996171208 | I141: 94.27930979 | J141: 2.769746276 | K141: -0.4148515733 | L141: -1.154749089 | M141: -0.5283423878 | N141: 19.07906079 | O141: 237.6997147
A142: 136 | B142: 9922.577713 | C142: 16645.9113 | D142: 1.134078189 | E142: 74.09905551 | F142: 8771.858779 | G142: 12417.16925 | H142: 1.001648768 | I142: 94.37509925 | J142: 2.769770872 | K142: -0.4148600704 | L142: -1.154734005 | M142: -0.5283800185 | N142: 19.17639945 | O142: 237.7683935
A143: 137 | B143: 9898.015577 | C143: 16637.59075 | D143: 1.136121651 | E143: 74.17000823 | F143: 8756.645914 | G143: 12407.32419 | H143: 1.003669684 | I143: 94.4703828 | J143: 2.769796052 | K143: -0.4148687462 | L143: -1.154718476 | M143: -0.5284185644 | N143: 19.27320921 | O143: 237.836145
A144: 138 | B144: 9873.668461 | C144: 16629.31877 | D144: 1.138150904 | E144: 74.24046756 | F144: 8741.561846 | G144: 12397.52101 | H144: 1.005680023 | I144: 94.56516763 | J144: 2.769821803 | K144: -0.4148775968 | L144: -1.154702513 | M144: -0.5284580065 | N144: 19.36949516 | O144: 237.9029843
A145: 139 | B145: 9849.533126 | C145: 16621.09459 | D145: 1.140166156 | E145: 74.31044074 | F145: 8726.604627 | G145: 12387.75925 | H145: 1.007679934 | I145: 94.65946081 | J145: 2.769848114 | K145: -0.4148866185 | L145: -1.154686123 | M145: -0.5284983269 | N145: 19.46526234 | O145: 237.9689262
A146: 140 | B146: 9825.606403 | C146: 16612.91747 | D146: 1.14216761 | E146: 74.37993486 | F146: 8711.772358 | G146: 12378.03846 | H146: 1.009669564 | I146: 94.75326923 | J146: 2.769874974 | K146: -0.4148958075 | L146: -1.154669315 | M146: -0.5285395077 | N146: 19.56051573 | O146: 238.0339853
A147: 141 | B147: 9801.885193 | C147: 16604.78668 | D147: 1.144155467 | E147: 74.44895684 | F147: 8697.063175 | G147: 12368.35819 | H147: 1.011649056 | I147: 94.84659965 | J147: 2.769902371 | K147: -0.4149051604 | L147: -1.154652098 | M147: -0.5285815316 | N147: 19.65526022 | O147: 238.0981756
A148: 142 | B148: 9778.366461 | C148: 16596.7015 | D148: 1.146129921 | E148: 74.51751347 | F148: 8682.475258 | G148: 12358.71799 | H148: 1.013618549 | I148: 94.93945867 | J148: 2.769930295 | K148: -0.4149146735 | L148: -1.154634479 | M148: -0.5286243818 | N148: 19.74950062 | O148: 238.1615111
A149: 143 | B149: 9755.047238 | C149: 16588.66125 | D149: 1.148091165 | E149: 74.58561139 | F149: 8668.006825 | G149: 12349.11744 | H149: 1.015578181 | I149: 95.03185274 | J149: 2.769958735 | K149: -0.4149243435 | L149: -1.154616466 | M149: -0.5286680418 | N149: 19.84324168 | O149: 238.2240054
A150: 144 | B150: 9731.924617 | C150: 16580.66524 | D150: 1.150039384 | E150: 74.65325708 | F150: 8653.65613 | G150: 12339.55612 | H150: 1.017528087 | I150: 95.12378821 | J150: 2.769987681 | K150: -0.4149341672 | L150: -1.154598066 | M150: -0.5287124954 | N150: 19.9364881 | O150: 238.2856719
A151: 145 | B151: 9708.995752 | C151: 16572.71282 | D151: 1.151974761 | E151: 74.72045689 | F151: 8639.421467 | G151: 12330.03361 | H151: 1.019468396 | I151: 95.21527125 | J151: 2.770017122 | K151: -0.4149441411 | L151: -1.154579288 | M151: -0.528757727 | N151: 20.02924448 | O151: 238.3465234
A152: 146 | B152: 9686.257857 | C152: 16564.80334 | D152: 1.153897477 | E152: 74.78721707 | F152: 8625.301161 | G152: 12320.54951 | H152: 1.021399239 | I152: 95.30630794 | J152: 2.770047049 | K152: -0.4149542622 | L152: -1.154560138 | M152: -0.5288037213 | N152: 20.12151538 | O152: 238.4065729
A153: 147 | B153: 9663.708202 | C153: 16556.93619 | D153: 1.155807707 | E153: 74.85354369 | F153: 8611.293577 | G153: 12311.10343 | H153: 1.023320741 | I153: 95.3969042 | J153: 2.770077453 | K153: -0.4149645273 | L153: -1.154540623 | M153: -0.5288504633 | N153: 20.21330528 | O153: 238.4658328
A154: 148 | B154: 9641.344114 | C154: 16549.11074 | D154: 1.157705622 | E154: 74.91944273 | F154: 8597.397109 | G154: 12301.69498 | H154: 1.025233025 | I154: 95.48706586 | J154: 2.770108323 | K154: -0.4149749335 | L154: -1.154520751 | M154: -0.5288979384 | N154: 20.30461861 | O154: 238.5243153
A155: 149 | B155: 9619.162975 | C155: 16541.3264 | D155: 1.15959139 | E155: 74.98492003 | F155: 8583.610188 | G155: 12292.32378 | H155: 1.027136211 | I155: 95.57679861 | J155: 2.770139651 | K155: -0.4149854778 | L155: -1.154500528 | M155: -0.5289461324 | N155: 20.39545973 | O155: 238.5820326
A156: 150 | B156: 9597.16222 | C156: 16533.58258 | D156: 1.161465177 | E156: 75.04998131 | F156: 8569.931273 | G156: 12282.98945 | H156: 1.029030419 | I156: 95.66610801 | J156: 2.770171428 | K156: -0.4149961572 | L156: -1.154479961 | M156: -0.5289950312 | N156: 20.48583293 | O156: 238.6389963
A157: 151 | B157: 9575.339334 | C157: 16525.87873 | D157: 1.163327145 | E157: 75.11463218 | F157: 8556.358858 | G157: 12273.69164 | H157: 1.030915765 | I157: 95.75499956 | J157: 2.770203645 | K157: -0.4150069691 | L157: -1.154459056 | M157: -0.5290446213 | N157: 20.57574246 | O157: 238.695218
A158: 152 | B158: 9553.691856 | C158: 16518.21427 | D158: 1.165177451 | E158: 75.17887815 | F158: 8542.891463 | G158: 12264.42999 | H158: 1.032792361 | I158: 95.84347858 | J158: 2.770236293 | K158: -0.4150179105 | L158: -1.15443782 | M158: -0.5290948894 | N158: 20.66519249 | O158: 238.750709
A159: 153 | B159: 9532.217369 | C159: 16510.58867 | D159: 1.16701625 | E159: 75.24272459 | F159: 8529.527642 | G159: 12255.20414 | H159: 1.034660319 | I159: 95.93155035 | J159: 2.770269365 | K159: -0.4150289789 | L159: -1.154416259 | M159: -0.5291458225 | N159: 20.75418715 | O159: 238.8054803
A160: 154 | B160: 9510.913508 | C160: 16503.00141 | D160: 1.168843695 | E160: 75.30617678 | F160: 8516.265974 | G160: 12246.01375 | H160: 1.036519748 | I160: 96.01921999 | J160: 2.770302852 | K160: -0.4150401716 | L160: -1.154394378 | M160: -0.5291974078 | N160: 20.8427305 | O160: 238.8595429
A161: 155 | B161: 9489.777952 | C161: 16495.45195 | D161: 1.170659934 | E161: 75.3692399 | F161: 8503.105069 | G161: 12236.85848 | H161: 1.038370756 | I161: 96.10649256 | J161: 2.770336745 | K161: -0.4150514861 | L161: -1.154372185 | M161: -0.529249633 | N161: 20.93082655 | O161: 238.9129074
A162: 156 | B162: 9468.808427 | C162: 16487.93979 | D162: 1.172465115 | E162: 75.43191903 | F162: 8490.043561 | G162: 12227.73801 | H162: 1.040213447 | I162: 96.193373 | J162: 2.770371038 | K162: -0.4150629197 | L162: -1.154349684 | M162: -0.5293024859 | N162: 21.01847926 | O162: 238.9655842
A163: 157 | B163: 9448.002702 | C163: 16480.46445 | D163: 1.174259379 | E163: 75.49421913 | F163: 8477.080114 | G163: 12218.652 | H163: 1.042047923 | I163: 96.27986616 | J163: 2.770405723 | K163: -0.4150744701 | L163: -1.154326881 | M163: -0.5293559546 | N163: 21.10569252 | O163: 239.0175835
A164: 158 | B164: 9427.358588 | C164: 16473.02543 | D164: 1.176042868 | E164: 75.55614508 | F164: 8464.213415 | G164: 12209.60015 | H164: 1.043874287 | I164: 96.36597679 | J164: 2.770440792 | K164: -0.4150861349 | L164: -1.154303782 | M164: -0.5294100275 | N164: 21.19247018 | O164: 239.0689155
A165: 159 | B165: 9406.873941 | C165: 16465.62226 | D165: 1.177815718 | E165: 75.61770167 | F165: 8451.442177 | G165: 12200.58212 | H165: 1.045692636 | I165: 96.45170956 | J165: 2.770476237 | K165: -0.4150979117 | L165: -1.154280392 | M165: -0.5294646932 | N165: 21.27881604 | O165: 239.1195898
A166: 160 | B166: 9386.546655 | C166: 16458.25447 | D166: 1.179578067 | E166: 75.67889359 | F166: 8438.76514 | G166: 12191.59763 | H166: 1.047503068 | I166: 96.53706904 | J166: 2.770512053 | K166: -0.4151097982 | L166: -1.154256717 | M166: -0.5295199407 | N166: 21.36473384 | O166: 239.1696163
A167: 161 | B167: 9366.374665 | C167: 16450.92162 | D167: 1.181330045 | E167: 75.73972545 | F167: 8426.181064 | G167: 12182.64636 | H167: 1.049305678 | I167: 96.62205973 | J167: 2.770548231 | K167: -0.4151217921 | L167: -1.154232762 | M167: -0.529575759 | N167: 21.45022727 | O167: 239.2190044
A168: 162 | B168: 9346.355944 | C168: 16443.62327 | D168: 1.183071783 | E168: 75.80020175 | F168: 8413.688734 | G168: 12173.72801 | H168: 1.05110056 | I168: 96.70668602 | J168: 2.770584765 | K168: -0.4151338913 | L168: -1.154208531 | M168: -0.5296321376 | N168: 21.53529997 | O168: 239.2677634
A169: 163 | B169: 9326.488505 | C169: 16436.35897 | D169: 1.184803409 | E169: 75.86032694 | F169: 8401.28696 | G169: 12164.8423 | H169: 1.052887804 | I169: 96.79095224 | J169: 2.770621649 | K169: -0.4151460937 | L169: -1.154184031 | M169: -0.529689066 | N169: 21.61995555 | O169: 239.3159023
A170: 164 | B170: 9306.770396 | C170: 16429.1283 | D170: 1.186525048 | E170: 75.92010535 | F170: 8388.974571 | G170: 12155.98894 | H170: 1.054667502 | I170: 96.87486264 | J170: 2.770658875 | K170: -0.415158397 | L170: -1.154159265 | M170: -0.5297465341 | N170: 21.70419754 | O170: 239.3634303
A171: 165 | B171: 9287.199702 | C171: 16421.93086 | D171: 1.188236823 | E171: 75.97954127 | F171: 8376.750419 | G171: 12147.16765 | H171: 1.056439741 | I171: 96.95842136 | J171: 2.770696438 | K171: -0.4151707992 | L171: -1.154134238 | M171: -0.5298045318 | N171: 21.78802945 | O171: 239.4103559
A172: 166 | B172: 9267.774541 | C172: 16414.76622 | D172: 1.189938854 | E172: 76.03863887 | F172: 8364.613378 | G172: 12138.37815 | H172: 1.058204608 | I172: 97.04163251 | J172: 2.770734331 | K172: -0.4151832984 | L172: -1.154108956 | M172: -0.5298630494 | N172: 21.87145474 | O172: 239.456688
A173: 167 | B173: 9248.49307 | C173: 16407.634 | D173: 1.19163126 | E173: 76.09740228 | F173: 8352.562341 | G173: 12129.62016 | H173: 1.059962188 | I173: 97.12450009 | J173: 2.770772548 | K173: -0.4151958925 | L173: -1.154083422 | M173: -0.5299220774 | N173: 21.9544768 | O173: 239.5024348
A174: 168 | B174: 9229.353475 | C174: 16400.5338 | D174: 1.193314158 | E174: 76.15583553 | F174: 8340.596222 | G174: 12120.89342 | H174: 1.061712564 | I174: 97.20702805 | J174: 2.770811082 | K174: -0.4152085796 | L174: -1.154057641 | M174: -0.5299816064 | N174: 22.03709902 | O174: 239.5476049
A175: 169 | B175: 9210.353976 | C175: 16393.46523 | D175: 1.194987661 | E175: 76.21394258 | F175: 8328.713955 | G175: 12112.19767 | H175: 1.06345582 | I175: 97.28922025 | J175: 2.77084993 | K175: -0.4152213579 | L175: -1.154031618 | M175: -0.5300416272 | N175: 22.11932469 | O175: 239.5922062
A176: 170 | B176: 9191.492827 | C176: 16386.42794 | D176: 1.196651881 | E176: 76.27172733 | F176: 8316.914492 | G176: 12103.53265 | H176: 1.065192035 | I176: 97.37108049 | J176: 2.770889083 | K176: -0.4152342254 | L176: -1.154005357 | M176: -0.5301021309 | N176: 22.20115711 | O176: 239.6362468
A177: 171 | B177: 9172.768311 | C177: 16379.42154 | D177: 1.19830693 | E177: 76.3291936 | F177: 8305.196805 | G177: 12094.89809 | H177: 1.066921288 | I177: 97.45261251 | J177: 2.770928537 | K177: -0.4152471804 | L177: -1.153978863 | M177: -0.5301631086 | N177: 22.28259951 | O177: 239.6797347
A178: 172 | B178: 9154.178741 | C178: 16372.44568 | D178: 1.199952914 | E178: 76.38634516 | F178: 8293.559885 | G178: 12086.29376 | H178: 1.068643658 | I178: 97.53381996 | J178: 2.770968286 | K178: -0.415260221 | L178: -1.153952138 | M178: -0.5302245519 | N178: 22.36365507 | O178: 239.7226774
A179: 173 | B179: 9135.722463 | C179: 16365.50001 | D179: 1.201589941 | E179: 76.44318569 | F179: 8282.002738 | G179: 12077.7194 | H179: 1.07035922 | I179: 97.61470647 | J179: 2.771008326 | K179: -0.4152733455 | L179: -1.153925188 | M179: -0.5302864521 | N179: 22.44432696 | O179: 239.7650826
A180: 174 | B180: 9117.397848 | C180: 16358.58417 | D180: 1.203218114 | E180: 76.49971881 | F180: 8270.524391 | G180: 12069.17477 | H180: 1.07206805 | I180: 97.69527555 | J180: 2.771048649 | K180: -0.4152865523 | L180: -1.153898016 | M180: -0.5303488011 | N180: 22.52461829 | O180: 239.8069578
A181: 175 | B181: 9099.203298 | C181: 16351.69784 | D181: 1.204837537 | E181: 76.5559481 | F181: 8259.123885 | G181: 12060.65964 | H181: 1.073770222 | I181: 97.7755307 | J181: 2.771089253 | K181: -0.4152998396 | L181: -1.153870626 | M181: -0.5304115908 | N181: 22.60453212 | O181: 239.8483102
A182: 176 | B182: 9081.137243 | C182: 16344.84068 | D182: 1.20644831 | E182: 76.61187704 | F182: 8247.800279 | G182: 12052.17376 | H182: 1.075465807 | I182: 97.85547532 | J182: 2.77113013 | K182: -0.4153132059 | L182: -1.153843023 | M182: -0.5304748133 | N182: 22.68407149 | O182: 239.889147
A183: 177 | B183: 9063.198138 | C183: 16338.01236 | D183: 1.208050531 | E183: 76.66750908 | F183: 8236.552649 | G183: 12043.7169 | H183: 1.077154878 | I183: 97.93511278 | J183: 2.771171277 | K183: -0.4153266494 | L183: -1.153815209 | M183: -0.5305384606 | N183: 22.7632394 | O183: 239.9294754
A184: 178 | B184: 9045.384466 | C184: 16331.21256 | D184: 1.2096443 | E184: 76.7228476 | F184: 8225.380086 | G184: 12035.28884 | H184: 1.078837504 | I184: 98.01444638 | J184: 2.771212688 | K184: -0.4153401687 | L184: -1.153787188 | M184: -0.5306025254 | N184: 22.8420388 | O184: 239.9693022
A185: 179 | B185: 9027.694736 | C185: 16324.44097 | D185: 1.21122971 | E185: 76.77789592 | F185: 8214.281697 | G185: 12026.88935 | H185: 1.080513754 | I185: 98.09347936 | J185: 2.771254358 | K185: -0.4153537621 | L185: -1.153758965 | M185: -0.5306669999 | N185: 22.92047261 | O185: 240.0086343
A186: 180 | B186: 9010.127482 | C186: 16317.69729 | D186: 1.212806857 | E186: 76.83265732 | F186: 8203.256603 | G186: 12018.51821 | H186: 1.082183696 | I186: 98.17221491 | J186: 2.771296284 | K186: -0.4153674283 | L186: -1.153730542 | M186: -0.530731877 | N186: 22.99854372 | O186: 240.0474784
A187: 181 | B187: 8992.681264 | C187: 16310.9812 | D187: 1.214375833 | E187: 76.88713499 | F187: 8192.303943 | G187: 12010.1752 | H187: 1.083847396 | I187: 98.25065618 | J187: 2.77133846 | K187: -0.4153811656 | L187: -1.153701924 | M187: -0.5307971495 | N187: 23.07625498 | O187: 240.085841
A188: 182 | B188: 8975.354663 | C188: 16304.29242 | D188: 1.215936729 | E188: 76.94133211 | F188: 8181.422866 | G188: 12001.8601 | H188: 1.08550492 | I188: 98.32880625 | J188: 2.771380881 | K188: -0.4153949727 | L188: -1.153673112 | M188: -0.5308628102 | N188: 23.15360919 | O188: 240.1237287
A189: 183 | B189: 8958.146287 | C189: 16297.63065 | D189: 1.217489633 | E189: 76.99525178 | F189: 8170.612539 | G189: 11993.57271 | H189: 1.087156332 | I189: 98.40666815 | J189: 2.771423544 | K189: -0.4154088481 | L189: -1.153644112 | M189: -0.5309288523 | N189: 23.23060915 | O189: 240.1611477
A190: 184 | B190: 8941.054765 | C190: 16290.9956 | D190: 1.219034635 | E190: 77.04889704 | F190: 8159.872141 | G190: 11985.31282 | H190: 1.088801696 | I190: 98.48424486 | J190: 2.771466444 | K190: -0.4154227904 | L190: -1.153614926 | M190: -0.530995269 | N190: 23.30725758 | O190: 240.1981044
A191: 185 | B191: 8924.078751 | C191: 16284.387 | D191: 1.220571821 | E191: 77.1022709 | F191: 8149.200867 | G191: 11977.08021 | H191: 1.090441073 | I191: 98.56153932 | J191: 2.771509577 | K191: -0.4154367983 | L191: -1.153585557 | M191: -0.5310620537 | N191: 23.38355721 | O191: 240.2346048
A192: 186 | B192: 8907.216919 | C192: 16277.80457 | D192: 1.222101275 | E192: 77.15537633 | F192: 8138.597921 | G192: 11968.87469 | H192: 1.092074524 | I192: 98.63855442 | J192: 2.771552938 | K192: -0.4154508704 | L192: -1.153556008 | M192: -0.5311291997 | N192: 23.4595107 | O192: 240.2706551
A193: 187 | B193: 8890.467965 | C193: 16271.24804 | D193: 1.223623082 | E193: 77.20821622 | F193: 8128.062524 | G193: 11960.69606 | H193: 1.093702111 | I193: 98.715293 | J193: 2.771596524 | K193: -0.4154650054 | L193: -1.153526283 | M193: -0.5311967009 | N193: 23.53512072 | O193: 240.3062612
A194: 188 | B194: 8873.830608 | C194: 16264.71715 | D194: 1.225137324 | E194: 77.26079343 | F194: 8117.593908 | G194: 11952.54412 | H194: 1.095323893 | I194: 98.79175785 | J194: 2.771640331 | K194: -0.415479202 | L194: -1.153496385 | M194: -0.5312645507 | N194: 23.61038986 | O194: 240.3414289
A195: 189 | B195: 8857.303587 | C195: 16258.21162 | D195: 1.226644081 | E195: 77.31311077 | F195: 8107.191317 | G195: 11944.41867 | H195: 1.096939927 | I195: 98.86795172 | J195: 2.771684353 | K195: -0.4154934589 | L195: -1.153466316 | M195: -0.5313327432 | N195: 23.68532071 | O195: 240.376164
A196: 190 | B196: 8840.885659 | C196: 16251.73121 | D196: 1.228143434 | E196: 77.36517102 | F196: 8096.85401 | G196: 11936.31953 | H196: 1.098550271 | I196: 98.94387732 | J196: 2.771728589 | K196: -0.4155077749 | L196: -1.153436079 | M196: -0.5314012722 | N196: 23.75991582 | O196: 240.410472
A197: 191 | B197: 8824.575603 | C197: 16245.27567 | D197: 1.229635461 | E197: 77.4169769 | F197: 8086.581255 | G197: 11928.2465 | H197: 1.100154981 | I197: 99.01953731 | J197: 2.771773033 | K197: -0.4155221488 | L197: -1.153405678 | M197: -0.5314701318 | N197: 23.83417771 | O197: 240.4443586
A198: 192 | B198: 8808.372219 | C198: 16238.84474 | D198: 1.23112024 | E198: 77.46853108 | F198: 8076.372332 | G198: 11920.1994 | H198: 1.101754114 | I198: 99.09493431 | J198: 2.771817683 | K198: -0.4155365794 | L198: -1.153375115 | M198: -0.5315393162 | N198: 23.90810888 | O198: 240.4778293
A199: 193 | B199: 8792.274324 | C199: 16232.43819 | D199: 1.232597845 | E199: 77.51983621 | F199: 8066.226533 | G199: 11912.17804 | H199: 1.103347724 | I199: 99.1700709 | J199: 2.771862533 | K199: -0.4155510655 | L199: -1.153344393 | M199: -0.5316088197 | N199: 23.98171178 | O199: 240.5108894
A200: 194 | B200: 8776.280753 | C200: 16226.05576 | D200: 1.234068352 | E200: 77.57089488 | F200: 8056.143163 | G200: 11904.18224 | H200: 1.104935864 | I200: 99.24494963 | J200: 2.771907582 | K200: -0.415565606 | L200: -1.153313515 | M200: -0.5316786366 | N200: 24.05498885 | O200: 240.5435441
A201: 195 | B201: 8760.390362 | C201: 16219.69724 | D201: 1.235531835 | E201: 77.62170965 | F201: 8046.121535 | G201: 11896.21183 | H201: 1.106518588 | I201: 99.31957298 | J201: 2.771952825 | K201: -0.4155801996 | L201: -1.153282483 | M201: -0.5317487615 | N201: 24.12794248 | O201: 240.5757988
... 2805 more rows

Sheet B3Output

Sheet StressAtPoints

Sheet NM
